Workbook

Sheet Control
A1: Menu Text | B1: Button Text/Sheet Names
A2: Inputs | B2: Set Up | C2: Outcome Relative Risk | D2: Additional Monetary Impact | E2: Utility | F2: . | G2: . | H2: . | I2: .
A3: Results | B3: Overall | C3: Per student | D3: Sensitivity Analysis | E3: . | F3: . | G3: . | H3: . | I3: .
A4: . | B4: . | C4: . | D4: . | E4: . | F4: . | G4: . | H4: . | I4: .
A5: . | B5: . | C5: . | D5: . | E5: . | F5: . | G5: . | H5: . | I5: .
A6: . | B6: . | C6: . | D6: . | E6: . | F6: . | G6: . | H6: . | I6: .
A7: . | B7: . | C7: . | D7: . | E7: . | F7: . | G7: . | H7: . | I7: .
J12: Colour coding of sheet tabs:
J14: LIVE Sheet
J16: Inputs
B18: Hide using this ----> | C18: . | J18: Calculations
J20: Results
A23: Enter Title here: | B23: Measuring outcomes following promotion of social, emotional and mental wellbeing in schools
A27: Inputs | B27: Set Up | C27: Outcome Relative Risk | D27: Additional Monetary Impact | E27: Utility | F27: MENU1B5 | G27: MENU1B6 | H27: MENU1B7 | I27: MENU1B8
A28: Results | B28: Overall | C28: Per student | D28: Sensitivity Analysis | E28: MENU2B4 | F28: MENU2B5 | G28: MENU2B6 | H28: MENU2B7 | I28: MENU2B8
A29: MENU3 | B29: MENU3B1 | C29: MENU3B2 | D29: MENU3B3 | E29: MENU3B4 | F29: MENU3B5 | G29: MENU3B6 | H29: MENU3B7 | I29: MENU3B8
A30: MENU4 | B30: MENU4B1 | C30: MENU4B2 | D30: MENU4B3 | E30: MENU4B4 | F30: MENU4B5 | G30: MENU4B6 | H30: MENU4B7 | I30: MENU4B8
A31: MENU5 | B31: MENU5B1 | C31: MENU5B2 | D31: MENU5B3 | E31: MENU5B4 | F31: MENU5B5 | G31: MENU5B6 | H31: MENU5B7 | I31: MENU5B8
A32: MENU6 | B32: MENU6B1 | C32: MENU6B2 | D32: MENU6B3 | E32: MENU6B4 | F32: MENU6B5 | G32: MENU6B6 | H32: MENU6B7 | I32: MENU6B8

Sheet Title Sheet
S4: Laura Coote, Erin Barker, Matthew Taylor
D12: Warning for model users: Due to substantial variability in the interventions available and heterogeneity across schools it is neither possible, nor judicious, for this model to provide ‘generalised’ results. It is recommended that the model is used to explore the potential economic and wellbeing implications so that each school or wider decision maker can evaluate its own most likely scenario.
D15: Explanatory video on how to use the model
D16: Model key:
D18: Blue background | H18: Indicates input cells. These can be changed as appropriate to your requirements.
D20: Orange background | H20: Indicates input cells where placeholder data have been used. These should be updated as and when data become available.
D22: Red text | H22: Indicates a formula cell. These are dependent upon other cells and should not be changed. There are no password or protected sheets.
D24: Comments | H24: A red mark in the corner of a cell indicates a comment. To view the comment, hover the pointer over the cell.
D27: Background to the model The model objective is to inform the impact of interventions on a range of student outcomes following an update to NICE guideline for social, emotional and mental wellbeing in primary and secondary education The updated guideline and model is for: • Teachers, school support staff and others working in schools with – or responsible for – children and young people • School leadership teams, including governors and leadership teams of multi-academy trusts • Practitioners with a health or social care remit (including public health, mental health and social workers) working in the NHS or local authorities • Commissioners and providers of interventions and services for child social, emotional and mental wellbeing • The wider public, private, voluntary and community sectors working with children and young people Intervention approaches include: • Universal: curriculum content and classroom-based interventions focused on social, emotional and mental wellbeing • Whole-school: an integrated approach that includes and goes beyond teaching and learning in the classroom to all aspects of the life of a school including culture, ethos and environment, as well as partnerships with parents or carers and families, outside agencies, and the wider community • Targeted: social or emotional support such as individual or small group interventions for areas such as self-esteem, resilience or coping skills for children and young people who need extra support in developing social and emotional skills • Transition: Support during periods of transition (for example developmental transitions such as puberty, life transitions such as family break-ups or bereavement, and educational transitions such as moving from primary to secondary school Student outcomes studied include: • Emotional distress • Behavioural skills • Social and emotional skills • Self-esteem • Bullying perpetration The model aims to calculate the number of students benefiting/worse-off following an intervention and the cost per outcome case Those working in healthcare may also be interested in the associated QALYs, therefore, an option to include utility values is present when using the societal perspective, determined on the model set up page For greater detail on the model inputs and usability please refer to the model report: [insert link]

Sheet Overview (hidden)
D11: Navigating the model
D37: Model overview | F37: Include decision problem, model structure, details on time horizon, cycle length (if applicable)

Sheet Set Up
D11: Perspective:
D13: Approach: | E13: Universal | G13: Total cost of intervention | H13: =IF('Intervention Cost'!D28="",'Intervention Cost'!D24,'Intervention Cost'!D28) -> 0
D15: Intervention type: | E15: Please select... | G15: Number of students | H15: 100
D17: Outcome: | E17: Please select...
D20: Effectiveness | F20: Base case | G20: User defined | H20: Used in model
D21: =IF(OR(E15 = "Please select...",E17 = "Please select..."), "Please select using the dropdown menus", CONCATENATE("Relative risk of developing ",F89)) -> Please select using the dropdown menus | F21: =_xlfn.IFNA(F90,"") ->  | H21: =IF(G21="",IF(OR(F21 = "", F21="No available evidence"), 0,F21),G21) -> 0
BV36: cost per case
BT37: cost of intervention | BV37: =Overall!E14 -> 0
BU38: 500 | BV38: 0
BU39: 1000 | BV39: 0
BU40: 1500 | BV40: 0
BU41: 2000 | BV41: 0
BU42: 2500 | BV42: 0
BU43: 3000 | BV43: 0
BU44: 3500 | BV44: 0
BU45: 4000 | BV45: 0
BU46: 4500 | BV46: 0
BU47: 5000 | BV47: 0
BT49: number of students | BV49: =BV37 -> 0
BU50: 250 | BV50: 0
BU51: 500 | BV51: 0
BU52: 750 | BV52: 0
BU53: 1000 | BV53: 0
BU54: 1250 | BV54: 0
BU55: 1500 | BV55: 0
BU56: 1750 | BV56: 0
BU57: 2000 | BV57: 0
BU58: 2250 | BV58: 0
BV63: cost per case
BV64: =Overall!E14 -> 0
BT65: RR | BU65: 0.15 | BV65: 0
BU66: 0.3 | BV66: 0
BU67: 0.45 | BV67: 0
BU68: 0.6 | BV68: 0
BU69: 0.75 | BV69: 0
BU70: 0.9 | BV70: 0
BU71: 1.05 | BV71: 0
BU72: 1.2 | BV72: 0
BU73: 1.35 | BV73: 0
BU74: 1.5 | BV74: 0
BU75: 1.65 | BV75: 0
BU76: 1.8 | BV76: 0
BU77: 1.95 | BV77: 0
BU78: 2.1 | BV78: 0
D88: Perspective | F88: Relative Risk
D89: 1 | E89: Educational | F89: =LOWER(E17) -> please select...
E90: Societal | F90: =IF(E13="Universal", VLOOKUP(E15,'RR tables'!B12:X36,'Model Inputs'!E115+3,FALSE),IF(E13="Whole_school", VLOOKUP(E15,'RR tables'!B42:X43,'Model Inputs'!E115+3,FALSE),IF(E13="Targeted", VLOOKUP(E15,'RR tables'!B49:X56,'Model Inputs'!E115+3,FALSE),IF(E13="Transitions", VLOOKUP(E15,'RR tables'!B62:X62,'Model Inputs'!E115+3,FALSE))))) -> 
M98: =IFERROR(INDEX(#REF!,SMALL(IF($BE$127=$BG$116:$BG$122,ROW(#REF!)-102,""),ROW()-103)),"") -> 
M99: =IFERROR(INDEX(#REF!,SMALL(IF($BE$127=$BG$116:$BG$122,ROW(#REF!)-102,""),ROW()-103)),"") -> 
M100: =IFERROR(INDEX(#REF!,SMALL(IF($BE$127=$BG$116:$BG$122,ROW(#REF!)-102,""),ROW()-103)),"") -> 
M101: =IFERROR(INDEX(#REF!,SMALL(IF($BE$127=$BG$116:$BG$122,ROW(#REF!)-102,""),ROW()-103)),"") -> 
M102: =IFERROR(INDEX(#REF!,SMALL(IF($BE$127=$BG$116:$BG$122,ROW(#REF!)-102,""),ROW()-103)),"") -> 
M103: =IFERROR(INDEX(#REF!,SMALL(IF($BE$117=$BG$116:$BG$122,ROW(#REF!)-43,""),ROW()-44)),"") -> 

Sheet Model Inputs
D13: Interventions | L13: Utility
D14: Approaches | E14: Universal | F14: Whole_school | G14: Targeted | H14: Transitions | I14: Outcomes | J14: Column number on RR table sheet | L14: Inputs | O14: QALY Calculation | W14: FRIENDS for Life | X14: CBT | Y14: FRIENDS | Z14: Zippy's Friends | AA14: PATHS | AB14: RAP | AC14: LARS & LISA | AD14: SPARX-R | AE14: Op Volle Kracht | AF14: AOP | AG14: Mindfulness | AH14: HeadStrong | AI14: MoodGYM | AJ14: Pozik Bizi | AK14: E-Couch | AL14: E-GAD | AM14: MindOut | AN14: Coping Power Unviversal | AO14: Taking Action Program | AP14: ThisWayUp | AQ14: ITPFSA | AR14: StrongKids | AS14: Yoga | AT14: Working Things Out | AU14: Uplifting out health and wellbeing | BZ14: Universal | CB14: Outcomes (RR)
D15: Universal | E15: FRIENDS_for_Life | F15: Antibullying_with_curriculum | G15: MH_group_specialist | H15: Transition_between_schools | I15: ='RR tables'!E11 -> Emotional distress | J15: 1 | L15: Monetary value per QALY | M15: =Utility!E12 -> 20000 | O15: Improvement? | P15: =IF(AND(M38>=1,G44=1),1,IF(AND(M38<1,G44=1),-1,IF(AND(M38>=1,G44=2),-1,IF(AND(M38<1, G44=2),1)))) ->  | W15: Emotional distress | X15: Emotional distress | Y15: Emotional distress | Z15: X - Emotional distress | AA15: X - Emotional distress | AB15: Emotional distress | AC15: Emotional distress | AD15: Emotional distress | AE15: Emotional distress | AF15: Emotional distress | AG15: Emotional distress | AH15: Emotional distress | AI15: Emotional distress | AJ15: Emotional distress | AK15: Emotional distress | AL15: Emotional distress | AM15: Emotional distress | AN15: Emotional distress | AO15: Emotional distress | AP15: Emotional distress | AQ15: Emotional distress | AR15: X - Emotional distress | AS15: X - Emotional distress | AT15: X - Emotional distress | AU15: X - Emotional distress | BZ15: Intervention type | CA15: Description | CB15: Emotional distress | CC15: Depression | CD15: Self-esteem | CE15: Empathy | CF15: Psychological problems | CG15: Emotional wellbeing | CH15: Wellbeing | CI15: Social and emotional skills | CJ15: Cooperation | CK15: Social adjustment | CL15: Behavioural outcomes | CM15: Behavioural outcomes (difficulties) | CN15: Behavioural outcomes (prosocial) | CO15: Perpetration | CP15: Victimisation | CQ15: Perpetration (primary) | CR15: Perpetration (secondary) | CS15: Victimisation (primary) | CT15: Victimisation (secondary) | CU15: Cyberbullying perpetration | CV15: Cyberbullying victimisation | CW15: Exclusion | CX15: Truancy | CY15: School attendance | CZ15: School climate | DA15: Response
D16: Whole_school | E16: CBT | F16: Antibullying_without_curriculum | G16: MH_individual_specialist | I16: ='RR tables'!G11 -> Behavioural skills | J16: 3 | L16: Discount value | M16: =Utility!E13 -> 0.035 | O16: Total QALYs | P16: =IF('Set Up'!D89=1,0,VLOOKUP('Model Inputs'!M17,'Model Inputs'!L20:P30,5,FALSE))*P15*M33 ->  | W16: Behavioural skills | X16: X - Behavioural skills | Y16: X - Behavioural skills | Z16: Behavioural skills | AA16: Behavioural skills | AB16: Behavioural skills | AC16: X - Behavioural skills | AD16: X - Behavioural skills | AE16: X - Behavioural skills | AF16: Behavioural skills | AG16: X - Behavioural skills | AH16: X - Behavioural skills | AI16: X - Behavioural skills | AJ16: Behavioural skills | AK16: X - Behavioural skills | AL16: X - Behavioural skills | AM16: X - Behavioural skills | AN16: Behavioural skills | AO16: X - Behavioural skills | AP16: X - Behavioural skills | AQ16: X - Behavioural skills | AR16: X - Behavioural skills | AS16: X - Behavioural skills | AT16: Behavioural skills | AU16: X - Behavioural skills | BY16: 1 | BZ16: MH group (specialist) | CA16: Offer individual or group support to children and young people who have been identified as needing additional social and emotional support and/or mental health support | CB16: No available evidence | CC16: 0.51 | CD16: No available evidence | CE16: No available evidence | CF16: No available evidence | CG16: No available evidence | CH16: No available evidence | CI16: No available evidence | CJ16: No available evidence | CK16: No available evidence | CL16: No available evidence | CM16: No available evidence | CN16: No available evidence | CO16: No available evidence | CP16: No available evidence | CQ16: No available evidence | CR16: No available evidence | CS16: No available evidence | CT16: No available evidence | CU16: No available evidence | CV16: No available evidence | CW16: No available evidence | CX16: No available evidence | CY16: No available evidence | CZ16: No available evidence | DA16: 1.76
D17: Targeted | E17: FRIENDS | G17: MH_group_school_staff | I17: ='RR tables'!I11 -> Social and emotional skills | J17: 5 | L17: Length of benefit | M17: =Utility!D92 -> 1 | O17: QALY value | P17: =P16*M15 ->  | W17: X - Social and emotional skills | X17: X - Social and emotional skills | Y17: Social and emotional skills | Z17: X - Social and emotional skills | AA17: X - Social and emotional skills | AB17: Social and emotional skills | AC17: X - Social and emotional skills | AD17: X - Social and emotional skills | AE17: X - Social and emotional skills | AF17: X - Social and emotional skills | AG17: X - Social and emotional skills | AH17: X - Social and emotional skills | AI17: X - Social and emotional skills | AJ17: X - Social and emotional skills | AK17: X - Social and emotional skills | AL17: X - Social and emotional skills | AM17: Social and emotional skills | AN17: X - Social and emotional skills | AO17: X - Social and emotional skills | AP17: X - Social and emotional skills | AQ17: X - Social and emotional skills | AR17: Social and emotional skills | AS17: Social and emotional skills | AT17: X - Social and emotional skills | AU17: Social and emotional skills | BY17: 2 | BZ17: MD inidividual (specialist) | CB17: No available evidence | CC17: No available evidence | CD17: No available evidence | CE17: No available evidence | CF17: No available evidence | CG17: No available evidence | CH17: No available evidence | CI17: No available evidence | CJ17: No available evidence | CK17: No available evidence | CL17: No available evidence | CM17: No available evidence | CN17: No available evidence | CO17: No available evidence | CP17: No available evidence | CQ17: No available evidence | CR17: No available evidence | CS17: No available evidence | CT17: No available evidence | CU17: No available evidence | CV17: No available evidence | CW17: No available evidence | CX17: No available evidence | CY17: No available evidence | CZ17: No available evidence | DA17: No available evidence
D18: Transitions | E18: Zippys_Friends | G18: Computer_based_interventions | I18: ='RR tables'!K11 -> Self-esteem | J18: 7 | L18: Utility value | M18: =Utility!K13 -> 0 | W18: X - Self-esteem | X18: X - Self-esteem | Y18: X - Self-esteem | Z18: X - Self-esteem | AA18: X - Self-esteem | AB18: X - Self-esteem | AC18: X - Self-esteem | AD18: X - Self-esteem | AE18: X - Self-esteem | AF18: X - Self-esteem | AG18: X - Self-esteem | AH18: X - Self-esteem | AI18: X - Self-esteem | AJ18: X - Self-esteem | AK18: X - Self-esteem | AL18: X - Self-esteem | AM18: X - Self-esteem | AN18: X - Self-esteem | AO18: X - Self-esteem | AP18: X - Self-esteem | AQ18: X - Self-esteem | AR18: X - Self-esteem | AS18: X - Self-esteem | AT18: X - Self-esteem | AU18: X - Self-esteem | BY18: 3 | BZ18: MH group (school staff) | CB18: No available evidence | CC18: 0.19 | CD18: No available evidence | CE18: No available evidence | CF18: No available evidence | CG18: No available evidence | CH18: No available evidence | CI18: No available evidence | CJ18: No available evidence | CK18: No available evidence | CL18: No available evidence | CM18: No available evidence | CN18: No available evidence | CO18: No available evidence | CP18: No available evidence | CQ18: No available evidence | CR18: No available evidence | CS18: No available evidence | CT18: No available evidence | CU18: No available evidence | CV18: No available evidence | CW18: No available evidence | CX18: No available evidence | CY18: No available evidence | CZ18: No available evidence | DA18: No available evidence
E19: PATHS | G19: SE_group_school_staff | I19: ='RR tables'!M11 -> Prosocial behaviour skills | J19: 9 | W19: X - Prosocial behaviour skills | X19: X - Prosocial behaviour skills | Y19: X - Prosocial behaviour skills | Z19: X - Prosocial behaviour skills | AA19: X - Prosocial behaviour skills | AB19: X - Prosocial behaviour skills | AC19: X - Prosocial behaviour skills | AD19: X - Prosocial behaviour skills | AE19: X - Prosocial behaviour skills | AF19: X - Prosocial behaviour skills | AG19: X - Prosocial behaviour skills | AH19: X - Prosocial behaviour skills | AI19: X - Prosocial behaviour skills | AJ19: X - Prosocial behaviour skills | AK19: X - Prosocial behaviour skills | AL19: X - Prosocial behaviour skills | AM19: X - Prosocial behaviour skills | AN19: X - Prosocial behaviour skills | AO19: X - Prosocial behaviour skills | AP19: X - Prosocial behaviour skills | AQ19: X - Prosocial behaviour skills | AR19: X - Prosocial behaviour skills | AS19: X - Prosocial behaviour skills | AT19: X - Prosocial behaviour skills | AU19: X - Prosocial behaviour skills | BY19: 4 | BZ19: Promote SEW skills | CA19: Offer a whole-school approach to support positive social, emotional, and mental wellbeing in primary and secondary education. | CB19: No available evidence | CC19: No available evidence | CD19: No available evidence | CE19: No available evidence | CF19: No available evidence | CG19: No available evidence | CH19: No available evidence | CI19: No available evidence | CJ19: No available evidence | CK19: No available evidence | CL19: No available evidence | CM19: No available evidence | CN19: No available evidence | CO19: No available evidence | CP19: No available evidence | CQ19: No available evidence | CR19: No available evidence | CS19: No available evidence | CT19: No available evidence | CU19: No available evidence | CV19: No available evidence | CW19: No available evidence | CX19: No available evidence | CY19: No available evidence | CZ19: No available evidence | DA19: No available evidence
E20: RAP | G20: SE_group_specialist | I20: ='RR tables'!O11 -> Bullying perpetration | J20: 11 | L20: Year | M20: Utility (discounted) | N20: Effect over time | O20: Utility value | P20: Cumulative utility | W20: X - Bullying perpetration | X20: X - Bullying perpetration | Y20: X - Bullying perpetration | Z20: X - Bullying perpetration | AA20: X - Bullying perpetration | AB20: X - Bullying perpetration | AC20: X - Bullying perpetration | AD20: X - Bullying perpetration | AE20: X - Bullying perpetration | AF20: X - Bullying perpetration | AG20: X - Bullying perpetration | AH20: X - Bullying perpetration | AI20: X - Bullying perpetration | AJ20: X - Bullying perpetration | AK20: X - Bullying perpetration | AL20: X - Bullying perpetration | AM20: X - Bullying perpetration | AN20: X - Bullying perpetration | AO20: X - Bullying perpetration | AP20: X - Bullying perpetration | AQ20: X - Bullying perpetration | AR20: X - Bullying perpetration | AS20: X - Bullying perpetration | AT20: X - Bullying perpetration | AU20: X - Bullying perpetration | BR20: 5 | BS20: Bullying (without parent involvement) | BU20: No available evidence | BV20: No available evidence | BW20: No available evidence | BX20: No available evidence | BY20: No available evidence | BZ20: No available evidence | CA20: No available evidence | CB20: No available evidence | CC20: No available evidence | CD20: No available evidence | CE20: No available evidence | CF20: No available evidence | CG20: No available evidence | CH20: No available evidence | CI20: No available evidence | CJ20: No available evidence | CK20: No available evidence | CL20: No available evidence | CM20: No available evidence | CN20: No available evidence | CO20: No available evidence | CP20: No available evidence | CQ20: No available evidence | CR20: No available evidence | CS20: No available evidence | CT20: No available evidence
E21: LARS_and_LISA | G21: SE_individual_school_staff | I21: ='RR tables'!Q11 -> Emotional distress - primary education | J21: 13 | L21: 1 | M21: =M18 -> 0 | N21: =IF($M$17=1,1,Utility!F21) -> 1 | O21: =M21*N21 -> 0 | P21: =O21 -> 0 | W21: X - Emotional distress - primary education | X21: X - Emotional distress - primary education | Y21: X - Emotional distress - primary education | Z21: X - Emotional distress - primary education | AA21: X - Emotional distress - primary education | AB21: X - Emotional distress - primary education | AC21: X - Emotional distress - primary education | AD21: X - Emotional distress - primary education | AE21: X - Emotional distress - primary education | AF21: X - Emotional distress - primary education | AG21: X - Emotional distress - primary education | AH21: X - Emotional distress - primary education | AI21: X - Emotional distress - primary education | AJ21: X - Emotional distress - primary education | AK21: X - Emotional distress - primary education | AL21: X - Emotional distress - primary education | AM21: X - Emotional distress - primary education | AN21: X - Emotional distress - primary education | AO21: X - Emotional distress - primary education | AP21: X - Emotional distress - primary education | AQ21: X - Emotional distress - primary education | AR21: X - Emotional distress - primary education | AS21: X - Emotional distress - primary education | AT21: X - Emotional distress - primary education | AU21: X - Emotional distress - primary education | BS21: 6 | BT21: Bullying (with parent involvement) | BV21: No available evidence | BW21: No available evidence | BX21: No available evidence | BY21: No available evidence | BZ21: No available evidence | CA21: No available evidence | CB21: No available evidence | CC21: No available evidence | CD21: No available evidence | CE21: No available evidence | CF21: No available evidence | CG21: No available evidence | CH21: No available evidence | CI21: No available evidence | CJ21: No available evidence | CK21: No available evidence | CL21: No available evidence | CM21: No available evidence | CN21: No available evidence | CO21: No available evidence | CP21: No available evidence | CQ21: No available evidence | CR21: No available evidence | CS21: No available evidence | CT21: No available evidence | CU21: No available evidence
E22: SPARX_R | G22: SE_individual_specialist_not_specified | I22: ='RR tables'!S11 -> Emotional distress - secondary education | J22: 15 | L22: 2 | M22: =$M$18/(1+$M$16)^(L22-1) -> 0 | N22: =Utility!F22 -> 0.7 | O22: =M22*N22 -> 0 | P22: =SUM($O$21:O22) -> 0 | W22: X - Emotional distress - secondary education | X22: X - Emotional distress - secondary education | Y22: X - Emotional distress - secondary education | Z22: X - Emotional distress - secondary education | AA22: X - Emotional distress - secondary education | AB22: X - Emotional distress - secondary education | AC22: X - Emotional distress - secondary education | AD22: X - Emotional distress - secondary education | AE22: X - Emotional distress - secondary education | AF22: X - Emotional distress - secondary education | AG22: X - Emotional distress - secondary education | AH22: X - Emotional distress - secondary education | AI22: X - Emotional distress - secondary education | AJ22: X - Emotional distress - secondary education | AK22: X - Emotional distress - secondary education | AL22: X - Emotional distress - secondary education | AM22: X - Emotional distress - secondary education | AN22: X - Emotional distress - secondary education | AO22: X - Emotional distress - secondary education | AP22: X - Emotional distress - secondary education | AQ22: X - Emotional distress - secondary education | AR22: X - Emotional distress - secondary education | AS22: X - Emotional distress - secondary education | AT22: X - Emotional distress - secondary education | AU22: X - Emotional distress - secondary education | BS22: 7 | BT22: Bullying | BV22: No available evidence | BW22: No available evidence | BX22: No available evidence | BY22: No available evidence | BZ22: No available evidence | CA22: No available evidence | CB22: No available evidence | CC22: No available evidence | CD22: No available evidence | CE22: No available evidence | CF22: No available evidence | CG22: No available evidence | CH22: No available evidence | CI22: No available evidence | CJ22: No available evidence | CK22: No available evidence | CL22: No available evidence | CM22: No available evidence | CN22: No available evidence | CO22: No available evidence | CP22: No available evidence | CQ22: 0.97 | CR22: 1.11 | CS22: No available evidence | CT22: No available evidence | CU22: No available evidence
E23: Op_Volle_Kracht | I23: ='RR tables'!U11 -> Behavioural skills- primary education | J23: 17 | L23: 3 | M23: =$M$18/(1+$M$16)^(L23-1) -> 0 | N23: =Utility!F23 -> 0.4 | O23: =M23*N23 -> 0 | P23: =SUM($O$21:O23) -> 0 | W23: X - Behavioural skills- primary education | X23: X - Behavioural skills- primary education | Y23: X - Behavioural skills- primary education | Z23: X - Behavioural skills- primary education | AA23: X - Behavioural skills- primary education | AB23: X - Behavioural skills- primary education | AC23: X - Behavioural skills- primary education | AD23: X - Behavioural skills- primary education | AE23: X - Behavioural skills- primary education | AF23: X - Behavioural skills- primary education | AG23: X - Behavioural skills- primary education | AH23: X - Behavioural skills- primary education | AI23: X - Behavioural skills- primary education | AJ23: X - Behavioural skills- primary education | AK23: X - Behavioural skills- primary education | AL23: X - Behavioural skills- primary education | AM23: X - Behavioural skills- primary education | AN23: X - Behavioural skills- primary education | AO23: X - Behavioural skills- primary education | AP23: X - Behavioural skills- primary education | AQ23: X - Behavioural skills- primary education | AR23: X - Behavioural skills- primary education | AS23: X - Behavioural skills- primary education | AT23: X - Behavioural skills- primary education | AU23: X - Behavioural skills- primary education | BS23: 8 | BT23: Bullying (curriculum + targeted) | BV23: No available evidence | BW23: No available evidence | BX23: No available evidence | BY23: No available evidence | BZ23: No available evidence | CA23: No available evidence | CB23: No available evidence | CC23: No available evidence | CD23: No available evidence | CE23: No available evidence | CF23: No available evidence | CG23: No available evidence | CH23: No available evidence | CI23: No available evidence | CJ23: No available evidence | CK23: No available evidence | CL23: No available evidence | CM23: No available evidence | CN23: No available evidence | CO23: No available evidence | CP23: No available evidence | CQ23: No available evidence | CR23: No available evidence | CS23: No available evidence | CT23: No available evidence | CU23: No available evidence
E24: AOP | I24: ='RR tables'!W11 -> Behavioural skills - secondary education | J24: 19 | L24: 4 | M24: 0 | N24: =Utility!F24 -> 0.1 | O24: 0 | P24: =SUM($O$21:O24) -> 0 | W24: X - Behavioural skills - secondary education | X24: X - Behavioural skills - secondary education | Y24: X - Behavioural skills - secondary education | Z24: X - Behavioural skills - secondary education | AA24: X - Behavioural skills - secondary education | AB24: X - Behavioural skills - secondary education | AC24: X - Behavioural skills - secondary education | AD24: X - Behavioural skills - secondary education | AE24: X - Behavioural skills - secondary education | AF24: X - Behavioural skills - secondary education | AG24: X - Behavioural skills - secondary education | AH24: X - Behavioural skills - secondary education | AI24: X - Behavioural skills - secondary education | AJ24: X - Behavioural skills - secondary education | AK24: X - Behavioural skills - secondary education | AL24: X - Behavioural skills - secondary education | AM24: X - Behavioural skills - secondary education | AN24: X - Behavioural skills - secondary education | AO24: X - Behavioural skills - secondary education | AP24: X - Behavioural skills - secondary education | AQ24: X - Behavioural skills - secondary education | AR24: X - Behavioural skills - secondary education | AS24: X - Behavioural skills - secondary education | AT24: X - Behavioural skills - secondary education | AU24: X - Behavioural skills - secondary education | BS24: 9 | BT24: Transition between schools | BU24: Take account of the concerns of children undergoing transition | BV24: No available evidence | BW24: No available evidence | BX24: No available evidence | BY24: No available evidence | BZ24: No available evidence | CA24: No available evidence | CB24: No available evidence | CC24: No available evidence | CD24: No available evidence | CE24: No available evidence | CF24: No available evidence | CG24: No available evidence | CH24: No available evidence | CI24: No available evidence | CJ24: No available evidence | CK24: No available evidence | CL24: No available evidence | CM24: No available evidence | CN24: No available evidence | CO24: No available evidence | CP24: No available evidence | CQ24: No available evidence | CR24: No available evidence | CS24: No available evidence | CT24: No available evidence | CU24: No available evidence
E25: Mindfulness | L25: 5 | M25: 0 | N25: =Utility!F25 -> 0 | O25: 0 | P25: =SUM($O$21:O25) -> 0
E26: HeadStrong | L26: 6 | M26: 0 | N26: =Utility!F26 -> 0 | O26: 0 | P26: =SUM($O$21:O26) -> 0
E27: MoodGYM | L27: 7 | M27: 0 | N27: =Utility!F27 -> 0 | O27: 0 | P27: =SUM($O$21:O27) -> 0 | W27: Antibullying with curriculum | X27: Antibullying without curriculum | BT27: WSA | BV27: Outcomes (RR)
E28: Pozik Bizi | L28: 8 | M28: 0 | N28: =Utility!F28 -> 0 | O28: 0 | P28: =SUM($O$21:O28) -> 0 | W28: X - Emotional distress | X28: X - Emotional distress | BT28: Intervention type | BU28: Description | BV28: Emotional distress | BW28: Depression | BX28: Self-esteem | BY28: Empathy | BZ28: Psychological problems | CA28: Emotional wellbeing | CB28: Wellbeing | CC28: Social and emotional skills | CD28: Cooperation | CE28: Social adjustment | CF28: Behavioural outcomes | CG28: Behavioural outcomes (difficulties) | CH28: Behavioural outcomes (prosocial) | CI28: Perpetration | CJ28: Victimisation | CK28: Perpetration (primary) | CL28: Perpetration (secondary) | CM28: Victimisation (primary) | CN28: Victimisation (secondary) | CO28: Cyberbullying perpetration | CP28: Cyberbullying victimisation | CQ28: Exclusion | CR28: Truancy | CS28: School attendance | CT28: School climate | CU28: Response
E29: E_Couch | L29: 9 | M29: 0 | N29: =Utility!F29 -> 0 | O29: 0 | P29: =SUM($O$21:O29) -> 0 | W29: Behavioural skills | X29: Behavioural skills | BS29: 1 | BT29: MH group (specialist) | BU29: Offer individual or group support to children and young people who have been identified as needing additional social and emotional support and/or mental health support | BV29: No available evidence | BW29: 0.51 | BX29: No available evidence | BY29: No available evidence | BZ29: No available evidence | CA29: No available evidence | CB29: No available evidence | CC29: No available evidence | CD29: No available evidence | CE29: No available evidence | CF29: No available evidence | CG29: No available evidence | CH29: No available evidence | CI29: No available evidence | CJ29: No available evidence | CK29: No available evidence | CL29: No available evidence | CM29: No available evidence | CN29: No available evidence | CO29: No available evidence | CP29: No available evidence | CQ29: No available evidence | CR29: No available evidence | CS29: No available evidence | CT29: No available evidence | CU29: 1.76
E30: E_GAD | L30: 10 | M30: 0 | N30: =Utility!F30 -> 0 | O30: 0 | P30: =SUM($O$21:O30) -> 0 | W30: Social and emotional skills | X30: X - Social and emotional skills | BS30: 2 | BT30: MD inidividual (specialist) | BV30: No available evidence | BW30: No available evidence | BX30: No available evidence | BY30: No available evidence | BZ30: No available evidence | CA30: No available evidence | CB30: No available evidence | CC30: No available evidence | CD30: No available evidence | CE30: No available evidence | CF30: No available evidence | CG30: No available evidence | CH30: No available evidence | CI30: No available evidence | CJ30: No available evidence | CK30: No available evidence | CL30: No available evidence | CM30: No available evidence | CN30: No available evidence | CO30: No available evidence | CP30: No available evidence | CQ30: No available evidence | CR30: No available evidence | CS30: No available evidence | CT30: No available evidence | CU30: No available evidence
E31: MindOut | W31: X - Self-esteem | X31: X - Self-esteem | BZ31: 3 | CA31: MH group (school staff) | CC31: No available evidence | CD31: 0.19 | CE31: No available evidence | CF31: No available evidence | CG31: No available evidence | CH31: No available evidence | CI31: No available evidence | CJ31: No available evidence | CK31: No available evidence | CL31: No available evidence | CM31: No available evidence | CN31: No available evidence | CO31: No available evidence | CP31: No available evidence | CQ31: No available evidence | CR31: No available evidence | CS31: No available evidence | CT31: No available evidence | CU31: No available evidence | CV31: No available evidence | CW31: No available evidence | CX31: No available evidence | CY31: No available evidence | CZ31: No available evidence | DA31: No available evidence | DB31: No available evidence
E32: Coping_Power_Unviversal | L32: Effectiveness | W32: X - Prosocial behaviour skills | X32: X - Prosocial behaviour skills | BY32: 4 | BZ32: Promote SEW skills | CA32: Offer a whole-school approach to support positive social, emotional, and mental wellbeing in primary and secondary education. | CB32: No available evidence | CC32: No available evidence | CD32: No available evidence | CE32: No available evidence | CF32: No available evidence | CG32: No available evidence | CH32: No available evidence | CI32: No available evidence | CJ32: No available evidence | CK32: No available evidence | CL32: No available evidence | CM32: No available evidence | CN32: No available evidence | CO32: No available evidence | CP32: No available evidence | CQ32: No available evidence | CR32: No available evidence | CS32: No available evidence | CT32: No available evidence | CU32: No available evidence | CV32: No available evidence | CW32: No available evidence | CX32: No available evidence | CY32: No available evidence | CZ32: No available evidence | DA32: No available evidence
E33: Taking_Action_Program | L33: Students effected | M33: =IF(M38>2,M37,IF(M38=0, 0, M37*(ABS(1-M38)))) -> 0 | W33: X - Bullying perpetration | X33: X - Bullying perpetration | BY33: 5 | BZ33: Bullying (without parent involvement) | CB33: No available evidence | CC33: No available evidence | CD33: No available evidence | CE33: No available evidence | CF33: No available evidence | CG33: No available evidence | CH33: No available evidence | CI33: No available evidence | CJ33: No available evidence | CK33: No available evidence | CL33: No available evidence | CM33: No available evidence | CN33: No available evidence | CO33: No available evidence | CP33: No available evidence | CQ33: No available evidence | CR33: No available evidence | CS33: No available evidence | CT33: No available evidence | CU33: No available evidence | CV33: No available evidence | CW33: No available evidence | CX33: No available evidence | CY33: No available evidence | CZ33: No available evidence | DA33: No available evidence
E34: ThisWayUp | W34: X - Emotional distress - primary education | X34: X - Emotional distress - primary education | BY34: 6 | BZ34: Bullying (with parent involvement) | CB34: No available evidence | CC34: No available evidence | CD34: No available evidence | CE34: No available evidence | CF34: No available evidence | CG34: No available evidence | CH34: No available evidence | CI34: No available evidence | CJ34: No available evidence | CK34: No available evidence | CL34: No available evidence | CM34: No available evidence | CN34: No available evidence | CO34: No available evidence | CP34: No available evidence | CQ34: No available evidence | CR34: No available evidence | CS34: No available evidence | CT34: No available evidence | CU34: No available evidence | CV34: No available evidence | CW34: No available evidence | CX34: No available evidence | CY34: No available evidence | CZ34: No available evidence | DA34: No available evidence
E35: ITPFSA | L35: Set up | W35: X - Emotional distress - secondary education | X35: X - Emotional distress - secondary education | BY35: 7 | BZ35: Bullying | CB35: No available evidence | CC35: No available evidence | CD35: No available evidence | CE35: No available evidence | CF35: No available evidence | CG35: No available evidence | CH35: No available evidence | CI35: No available evidence | CJ35: No available evidence | CK35: No available evidence | CL35: No available evidence | CM35: No available evidence | CN35: No available evidence | CO35: No available evidence | CP35: No available evidence | CQ35: No available evidence | CR35: No available evidence | CS35: No available evidence | CT35: No available evidence | CU35: No available evidence | CV35: No available evidence | CW35: 0.97 | CX35: 1.11 | CY35: No available evidence | CZ35: No available evidence | DA35: No available evidence
E36: StrongKids | L36: Intervention cost | M36: =-'Set Up'!H13 -> 0 | W36: X - Behavioural skills- primary education | X36: X - Behavioural skills- primary education | BY36: 8 | BZ36: Bullying (curriculum + targeted) | CB36: No available evidence | CC36: No available evidence | CD36: No available evidence | CE36: No available evidence | CF36: No available evidence | CG36: No available evidence | CH36: No available evidence | CI36: No available evidence | CJ36: No available evidence | CK36: No available evidence | CL36: No available evidence | CM36: No available evidence | CN36: No available evidence | CO36: No available evidence | CP36: No available evidence | CQ36: No available evidence | CR36: No available evidence | CS36: No available evidence | CT36: No available evidence | CU36: No available evidence | CV36: No available evidence | CW36: No available evidence | CX36: No available evidence | CY36: No available evidence | CZ36: No available evidence | DA36: No available evidence
E37: Yoga | L37: Number of students | M37: ='Set Up'!H15 -> 100 | W37: X - Behavioural skills - secondary education | X37: X - Behavioural skills - secondary education | BY37: 9 | BZ37: Transition between schools | CA37: Take account of the concerns of children undergoing transition | CB37: No available evidence | CC37: No available evidence | CD37: No available evidence | CE37: No available evidence | CF37: No available evidence | CG37: No available evidence | CH37: No available evidence | CI37: No available evidence | CJ37: No available evidence | CK37: No available evidence | CL37: No available evidence | CM37: No available evidence | CN37: No available evidence | CO37: No available evidence | CP37: No available evidence | CQ37: No available evidence | CR37: No available evidence | CS37: No available evidence | CT37: No available evidence | CU37: No available evidence | CV37: No available evidence | CW37: No available evidence | CX37: No available evidence | CY37: No available evidence | CZ37: No available evidence | DA37: No available evidence
E38: Working_Things_Out | L38: RR | M38: ='Set Up'!H21 -> 0
E39: Uplifting_out_health_and_wellbeing | L39: Outcome selected | M39: =LOWER('Set Up'!E17) -> please select... | BZ39: Targeted | CB39: Outcomes (RR)
W40: MH group (specialist) | X40: MH individual (specialist) | Y40: MH group (school staff) | Z40: Computer-based interventions | AA40: SE group (school staff) | AB40: SE group (specialist) | AC40: SE individual (school staff) | AD40: SE individual (specialist not specified) | BZ40: Intervention type | CA40: Description | CB40: Emotional distress | CC40: Depression | CD40: Self-esteem | CE40: Empathy | CF40: Psychological problems | CG40: Emotional wellbeing | CH40: Wellbeing | CI40: Social and emotional skills | CJ40: Cooperation | CK40: Social adjustment | CL40: Behavioural outcomes | CM40: Behavioural outcomes (difficulties) | CN40: Behavioural outcomes (prosocial) | CO40: Perpetration | CP40: Victimisation | CQ40: Perpetration (primary) | CR40: Perpetration (secondary) | CS40: Victimisation (primary) | CT40: Victimisation (secondary) | CU40: Cyberbullying perpetration | CV40: Cyberbullying victimisation | CW40: Exclusion | CX40: Truancy | CY40: School attendance | CZ40: School climate | DA40: Response
W41: Emotional distress | X41: Emotional distress | Y41: Emotional distress | Z41: Emotional distress | AA41: X - Emotional distress | AB41: X - Emotional distress | AC41: X - Emotional distress | AD41: X - Emotional distress | BY41: 1 | BZ41: MH group (specialist) | CA41: Offer individual or group support to children and young people who have been identified as needing additional social and emotional support and/or mental health support | CB41: No available evidence | CC41: 0.51 | CD41: No available evidence | CE41: No available evidence | CF41: No available evidence | CG41: No available evidence | CH41: No available evidence | CI41: No available evidence | CJ41: No available evidence | CK41: No available evidence | CL41: No available evidence | CM41: No available evidence | CN41: No available evidence | CO41: No available evidence | CP41: No available evidence | CQ41: No available evidence | CR41: No available evidence | CS41: No available evidence | CT41: No available evidence | CU41: No available evidence | CV41: No available evidence | CW41: No available evidence | CX41: No available evidence | CY41: No available evidence | CZ41: No available evidence | DA41: 1.76
W42: Behavioural skills | X42: Behavioural skills | Y42: X - Behavioural skills | Z42: X - Behavioural skills | AA42: Behavioural skills | AB42: Behavioural skills | AC42: Behavioural skills | AD42: Behavioural skills | BY42: 2 | BZ42: MD inidividual (specialist) | CB42: No available evidence | CC42: No available evidence | CD42: No available evidence | CE42: No available evidence | CF42: No available evidence | CG42: No available evidence | CH42: No available evidence | CI42: No available evidence | CJ42: No available evidence | CK42: No available evidence | CL42: No available evidence | CM42: No available evidence | CN42: No available evidence | CO42: No available evidence | CP42: No available evidence | CQ42: No available evidence | CR42: No available evidence | CS42: No available evidence | CT42: No available evidence | CU42: No available evidence | CV42: No available evidence | CW42: No available evidence | CX42: No available evidence | CY42: No available evidence | CZ42: No available evidence | DA42: No available evidence
D43: if RR>1 and x = good, benefit | F43: outcome: good =1, bad = 2 | W43: X - Social and emotional skills | X43: X - Social and emotional skills | Y43: X - Social and emotional skills | Z43: X - Social and emotional skills | AA43: X - Social and emotional skills | AB43: X - Social and emotional skills | AC43: X - Social and emotional skills | AD43: X - Social and emotional skills | BY43: 3 | BZ43: MH group (school staff) | CB43: No available evidence | CC43: 0.19 | CD43: No available evidence | CE43: No available evidence | CF43: No available evidence | CG43: No available evidence | CH43: No available evidence | CI43: No available evidence | CJ43: No available evidence | CK43: No available evidence | CL43: No available evidence | CM43: No available evidence | CN43: No available evidence | CO43: No available evidence | CP43: No available evidence | CQ43: No available evidence | CR43: No available evidence | CS43: No available evidence | CT43: No available evidence | CU43: No available evidence | CV43: No available evidence | CW43: No available evidence | CX43: No available evidence | CY43: No available evidence | CZ43: No available evidence | DA43: No available evidence
D44: if RR<1 and x = good, worse off | F44: x = | G44: =VLOOKUP(M39,F45:G54,2,FALSE) ->  | W44: X - Self-esteem | X44: Self-esteem | Y44: X - Self-esteem | Z44: X - Self-esteem | AA44: X - Self-esteem | AB44: X - Self-esteem | AC44: X - Self-esteem | AD44: X - Self-esteem | BY44: 4 | BZ44: Promote SEW skills | CA44: Offer a whole-school approach to support positive social, emotional, and mental wellbeing in primary and secondary education. | CB44: No available evidence | CC44: No available evidence | CD44: No available evidence | CE44: No available evidence | CF44: No available evidence | CG44: No available evidence | CH44: No available evidence | CI44: No available evidence | CJ44: No available evidence | CK44: No available evidence | CL44: No available evidence | CM44: No available evidence | CN44: No available evidence | CO44: No available evidence | CP44: No available evidence | CQ44: No available evidence | CR44: No available evidence | CS44: No available evidence | CT44: No available evidence | CU44: No available evidence | CV44: No available evidence | CW44: No available evidence | CX44: No available evidence | CY44: No available evidence | CZ44: No available evidence | DA44: No available evidence
D45: if RR>1 and x = bad, worse off | F45: emotional distress | G45: 2 | W45: X - Prosocial behaviour skills | X45: Prosocial behaviour skills | Y45: X - Prosocial behaviour skills | Z45: X - Prosocial behaviour skills | AA45: X - Prosocial behaviour skills | AB45: X - Prosocial behaviour skills | AC45: X - Prosocial behaviour skills | AD45: X - Prosocial behaviour skills | BY45: 5 | BZ45: Bullying (without parent involvement) | CB45: No available evidence | CC45: No available evidence | CD45: No available evidence | CE45: No available evidence | CF45: No available evidence | CG45: No available evidence | CH45: No available evidence | CI45: No available evidence | CJ45: No available evidence | CK45: No available evidence | CL45: No available evidence | CM45: No available evidence | CN45: No available evidence | CO45: No available evidence | CP45: No available evidence | CQ45: No available evidence | CR45: No available evidence | CS45: No available evidence | CT45: No available evidence | CU45: No available evidence | CV45: No available evidence | CW45: No available evidence | CX45: No available evidence | CY45: No available evidence | CZ45: No available evidence | DA45: No available evidence
D46: if RR<1 and x = bad, benefit | F46: behavioural skills | G46: 1 | W46: X - Bullying perpetration | X46: X - Bullying perpetration | Y46: X - Bullying perpetration | Z46: X - Bullying perpetration | AA46: X - Bullying perpetration | AB46: X - Bullying perpetration | AC46: X - Bullying perpetration | AD46: X - Bullying perpetration | BY46: 6 | BZ46: Bullying (with parent involvement) | CB46: No available evidence | CC46: No available evidence | CD46: No available evidence | CE46: No available evidence | CF46: No available evidence | CG46: No available evidence | CH46: No available evidence | CI46: No available evidence | CJ46: No available evidence | CK46: No available evidence | CL46: No available evidence | CM46: No available evidence | CN46: No available evidence | CO46: No available evidence | CP46: No available evidence | CQ46: No available evidence | CR46: No available evidence | CS46: No available evidence | CT46: No available evidence | CU46: No available evidence | CV46: No available evidence | CW46: No available evidence | CX46: No available evidence | CY46: No available evidence | CZ46: No available evidence | DA46: No available evidence
F47: social and emotional skills | G47: 1 | W47: X - Emotional distress - primary education | X47: X - Emotional distress - primary education | Y47: Emotional distress - primary education | Z47: X - Emotional distress - primary education | AA47: X - Emotional distress - primary education | AB47: X - Emotional distress - primary education | AC47: X - Emotional distress - primary education | AD47: X - Emotional distress - primary education | BY47: 7 | BZ47: Bullying | CB47: No available evidence | CC47: No available evidence | CD47: No available evidence | CE47: No available evidence | CF47: No available evidence | CG47: No available evidence | CH47: No available evidence | CI47: No available evidence | CJ47: No available evidence | CK47: No available evidence | CL47: No available evidence | CM47: No available evidence | CN47: No available evidence | CO47: No available evidence | CP47: No available evidence | CQ47: No available evidence | CR47: No available evidence | CS47: No available evidence | CT47: No available evidence | CU47: No available evidence | CV47: No available evidence | CW47: 0.97 | CX47: 1.11 | CY47: No available evidence | CZ47: No available evidence | DA47: No available evidence
F48: self-esteem | G48: 1 | W48: X - Emotional distress - secondary education | X48: X - Emotional distress - secondary education | Y48: Emotional distress - secondary education | Z48: X - Emotional distress - secondary education | AA48: X - Emotional distress - secondary education | AB48: X - Emotional distress - secondary education | AC48: X - Emotional distress - secondary education | AD48: X - Emotional distress - secondary education | BY48: 8 | BZ48: Bullying (curriculum + targeted) | CB48: No available evidence | CC48: No available evidence | CD48: No available evidence | CE48: No available evidence | CF48: No available evidence | CG48: No available evidence | CH48: No available evidence | CI48: No available evidence | CJ48: No available evidence | CK48: No available evidence | CL48: No available evidence | CM48: No available evidence | CN48: No available evidence | CO48: No available evidence | CP48: No available evidence | CQ48: No available evidence | CR48: No available evidence | CS48: No available evidence | CT48: No available evidence | CU48: No available evidence | CV48: No available evidence | CW48: No available evidence | CX48: No available evidence | CY48: No available evidence | CZ48: No available evidence | DA48: No available evidence
F49: prosocial behaviour skills | G49: 1 | W49: X - Behavioural skills- primary education | X49: X - Behavioural skills- primary education | Y49: X - Behavioural skills- primary education | Z49: X - Behavioural skills- primary education | AA49: X - Behavioural skills- primary education | AB49: Behavioural skills - primary education | AC49: X - Behavioural skills- primary education | AD49: X - Behavioural skills- primary education | BY49: 9 | BZ49: Transition between schools | CA49: Take account of the concerns of children undergoing transition | CB49: No available evidence | CC49: No available evidence | CD49: No available evidence | CE49: No available evidence | CF49: No available evidence | CG49: No available evidence | CH49: No available evidence | CI49: No available evidence | CJ49: No available evidence | CK49: No available evidence | CL49: No available evidence | CM49: No available evidence | CN49: No available evidence | CO49: No available evidence | CP49: No available evidence | CQ49: No available evidence | CR49: No available evidence | CS49: No available evidence | CT49: No available evidence | CU49: No available evidence | CV49: No available evidence | CW49: No available evidence | CX49: No available evidence | CY49: No available evidence | CZ49: No available evidence | DA49: No available evidence
F50: bullying perpetration | G50: 2 | W50: X - Behavioural skills - secondary education | X50: X - Behavioural skills - secondary education | Y50: X - Behavioural skills - secondary education | Z50: X - Behavioural skills - secondary education | AA50: X - Behavioural skills - secondary education | AB50: Behavioural skills - secondary education | AC50: X - Behavioural skills - secondary education | AD50: X - Behavioural skills - secondary education
F51: emotional distress - primary education | G51: 2
F52: emotional distress - secondary education | G52: 2 | BZ52: Transitions | CB52: Outcomes (RR)
F53: behavioural skills- primary education | G53: 1 | W53: Transition between schools | BZ53: Intervention type | CA53: Description | CB53: Emotional distress | CC53: Depression | CD53: Self-esteem | CE53: Empathy | CF53: Psychological problems | CG53: Emotional wellbeing | CH53: Wellbeing | CI53: Social and emotional skills | CJ53: Cooperation | CK53: Social adjustment | CL53: Behavioural outcomes | CM53: Behavioural outcomes (difficulties) | CN53: Behavioural outcomes (prosocial) | CO53: Perpetration | CP53: Victimisation | CQ53: Perpetration (primary) | CR53: Perpetration (secondary) | CS53: Victimisation (primary) | CT53: Victimisation (secondary) | CU53: Cyberbullying perpetration | CV53: Cyberbullying victimisation | CW53: Exclusion | CX53: Truancy | CY53: School attendance | CZ53: School climate | DA53: Response
F54: behavioural skills - secondary education | G54: 1 | W54: Emotional distress | BY54: 1 | BZ54: MH group (specialist) | CA54: Offer individual or group support to children and young people who have been identified as needing additional social and emotional support and/or mental health support | CB54: No available evidence | CC54: 0.51 | CD54: No available evidence | CE54: No available evidence | CF54: No available evidence | CG54: No available evidence | CH54: No available evidence | CI54: No available evidence | CJ54: No available evidence | CK54: No available evidence | CL54: No available evidence | CM54: No available evidence | CN54: No available evidence | CO54: No available evidence | CP54: No available evidence | CQ54: No available evidence | CR54: No available evidence | CS54: No available evidence | CT54: No available evidence | CU54: No available evidence | CV54: No available evidence | CW54: No available evidence | CX54: No available evidence | CY54: No available evidence | CZ54: No available evidence | DA54: 1.76
W55: Behavioural skills | BY55: 2 | BZ55: MD inidividual (specialist) | CB55: No available evidence | CC55: No available evidence | CD55: No available evidence | CE55: No available evidence | CF55: No available evidence | CG55: No available evidence | CH55: No available evidence | CI55: No available evidence | CJ55: No available evidence | CK55: No available evidence | CL55: No available evidence | CM55: No available evidence | CN55: No available evidence | CO55: No available evidence | CP55: No available evidence | CQ55: No available evidence | CR55: No available evidence | CS55: No available evidence | CT55: No available evidence | CU55: No available evidence | CV55: No available evidence | CW55: No available evidence | CX55: No available evidence | CY55: No available evidence | CZ55: No available evidence | DA55: No available evidence
W56: X - Social and emotional skills | BY56: 3 | BZ56: MH group (school staff) | CB56: No available evidence | CC56: 0.19 | CD56: No available evidence | CE56: No available evidence | CF56: No available evidence | CG56: No available evidence | CH56: No available evidence | CI56: No available evidence | CJ56: No available evidence | CK56: No available evidence | CL56: No available evidence | CM56: No available evidence | CN56: No available evidence | CO56: No available evidence | CP56: No available evidence | CQ56: No available evidence | CR56: No available evidence | CS56: No available evidence | CT56: No available evidence | CU56: No available evidence | CV56: No available evidence | CW56: No available evidence | CX56: No available evidence | CY56: No available evidence | CZ56: No available evidence | DA56: No available evidence
W57: X - Self-esteem | BY57: 4 | BZ57: Promote SEW skills | CA57: Offer a whole-school approach to support positive social, emotional, and mental wellbeing in primary and secondary education. | CB57: No available evidence | CC57: No available evidence | CD57: No available evidence | CE57: No available evidence | CF57: No available evidence | CG57: No available evidence | CH57: No available evidence | CI57: No available evidence | CJ57: No available evidence | CK57: No available evidence | CL57: No available evidence | CM57: No available evidence | CN57: No available evidence | CO57: No available evidence | CP57: No available evidence | CQ57: No available evidence | CR57: No available evidence | CS57: No available evidence | CT57: No available evidence | CU57: No available evidence | CV57: No available evidence | CW57: No available evidence | CX57: No available evidence | CY57: No available evidence | CZ57: No available evidence | DA57: No available evidence
F58: net monetary benefit | J58: nmb | N58: nmb | S58: cost per case | W58: X - Prosocial behaviour skills | BY58: 5 | BZ58: Bullying (without parent involvement) | CB58: No available evidence | CC58: No available evidence | CD58: No available evidence | CE58: No available evidence | CF58: No available evidence | CG58: No available evidence | CH58: No available evidence | CI58: No available evidence | CJ58: No available evidence | CK58: No available evidence | CL58: No available evidence | CM58: No available evidence | CN58: No available evidence | CO58: No available evidence | CP58: No available evidence | CQ58: No available evidence | CR58: No available evidence | CS58: No available evidence | CT58: No available evidence | CU58: No available evidence | CV58: No available evidence | CW58: No available evidence | CX58: No available evidence | CY58: No available evidence | CZ58: No available evidence | DA58: No available evidence
F59: =Overall!E20 ->  | J59: =Overall!E20 ->  | N59: =J59 ->  | S59: =N59 ->  | W59: Bullying perpetration | BY59: 6 | BZ59: Bullying (with parent involvement) | CB59: No available evidence | CC59: No available evidence | CD59: No available evidence | CE59: No available evidence | CF59: No available evidence | CG59: No available evidence | CH59: No available evidence | CI59: No available evidence | CJ59: No available evidence | CK59: No available evidence | CL59: No available evidence | CM59: No available evidence | CN59: No available evidence | CO59: No available evidence | CP59: No available evidence | CQ59: No available evidence | CR59: No available evidence | CS59: No available evidence | CT59: No available evidence | CU59: No available evidence | CV59: No available evidence | CW59: No available evidence | CX59: No available evidence | CY59: No available evidence | CZ59: No available evidence | DA59: No available evidence
D60: cost of intervention | E60: -1000 | H60: number of students | I60: 50 | L60: RR | M60: 0.15 | Q60: utility | R60: 0.025 | W60: X - Emotional distress - primary education | BY60: 7 | BZ60: Bullying | CB60: No available evidence | CC60: No available evidence | CD60: No available evidence | CE60: No available evidence | CF60: No available evidence | CG60: No available evidence | CH60: No available evidence | CI60: No available evidence | CJ60: No available evidence | CK60: No available evidence | CL60: No available evidence | CM60: No available evidence | CN60: No available evidence | CO60: No available evidence | CP60: No available evidence | CQ60: No available evidence | CR60: No available evidence | CS60: No available evidence | CT60: No available evidence | CU60: No available evidence | CV60: No available evidence | CW60: 0.97 | CX60: 1.11 | CY60: No available evidence | CZ60: No available evidence | DA60: No available evidence
E61: -5000 | I61: 100 | M61: 0.3 | R61: 0.05 | W61: X - Emotional distress - secondary education | BY61: 8 | BZ61: Bullying (curriculum + targeted) | CB61: No available evidence | CC61: No available evidence | CD61: No available evidence | CE61: No available evidence | CF61: No available evidence | CG61: No available evidence | CH61: No available evidence | CI61: No available evidence | CJ61: No available evidence | CK61: No available evidence | CL61: No available evidence | CM61: No available evidence | CN61: No available evidence | CO61: No available evidence | CP61: No available evidence | CQ61: No available evidence | CR61: No available evidence | CS61: No available evidence | CT61: No available evidence | CU61: No available evidence | CV61: No available evidence | CW61: No available evidence | CX61: No available evidence | CY61: No available evidence | CZ61: No available evidence | DA61: No available evidence
E62: -10000 | I62: 150 | M62: 0.45 | R62: 0.075 | W62: X - Behavioural skills- primary education | BY62: 9 | BZ62: Transition between schools | CA62: Take account of the concerns of children undergoing transition | CB62: No available evidence | CC62: No available evidence | CD62: No available evidence | CE62: No available evidence | CF62: No available evidence | CG62: No available evidence | CH62: No available evidence | CI62: No available evidence | CJ62: No available evidence | CK62: No available evidence | CL62: No available evidence | CM62: No available evidence | CN62: No available evidence | CO62: No available evidence | CP62: No available evidence | CQ62: No available evidence | CR62: No available evidence | CS62: No available evidence | CT62: No available evidence | CU62: No available evidence | CV62: No available evidence | CW62: No available evidence | CX62: No available evidence | CY62: No available evidence | CZ62: No available evidence | DA62: No available evidence
E63: -15000 | I63: 200 | M63: 0.6 | R63: 0.1 | W63: X - Behavioural skills - secondary education
E64: -20000 | I64: 250 | M64: 0.75 | R64: 0.125
E65: -25000 | I65: 300 | M65: 0.9 | R65: 0.15
E66: -30000 | I66: 350 | M66: 1.05 | R66: 0.175
E67: -35000 | I67: 400 | M67: 1.2 | R67: 0.2
E68: -40000 | I68: 450 | M68: 1.35 | R68: 0.225
E69: -45000 | M69: 1.5 | R69: 0.25
M70: 1.65 | R70: 0.275
M71: 1.8 | R71: 0.3
M72: 1.95
M73: 2.1
F89: cost per case
F90: =Overall!E14 -> 0 | J90: =F89 -> cost per case
D91: cost of intervention | E91: -1000 | F91: 0 | J91: =F90 -> 0 | O91: =J90 -> cost per case
E92: -5000 | F92: 0 | H92: number of students | I92: 50 | J92: 0 | O92: =J91 -> 0
E93: -10000 | F93: 0 | I93: 100 | J93: 0 | M93: RR | N93: 0.15 | O93: 0
E94: -15000 | F94: 0 | I94: 150 | J94: 0 | N94: 0.3 | O94: 0
E95: -20000 | F95: 0 | I95: 200 | J95: 0 | N95: 0.45 | O95: 0
E96: -25000 | F96: 0 | I96: 250 | J96: 0 | N96: 0.6 | O96: 0
E97: -30000 | F97: 0 | I97: 300 | J97: 0 | N97: 0.75 | O97: 0
E98: -35000 | F98: 0 | I98: 350 | J98: 0 | N98: 0.9 | O98: 0
E99: -40000 | F99: 0 | I99: 400 | J99: 0 | N99: 1.05 | O99: 0
E100: -45000 | F100: 0 | I100: 450 | J100: 0 | N100: 1.2 | O100: 0
N101: 1.35 | O101: 0
N102: 1.5 | O102: 0
N103: 1.65 | O103: 0
N104: 1.8 | O104: 0
N105: 1.95 | O105: 0
N106: 2.1 | O106: 0
E115: =VLOOKUP('Set Up'!E17,'Model Inputs'!I15:J24,2,FALSE) -> 
D143: ='Set Up'!BB114 -> 0 | F143: ='Set Up'!BD114 -> 0 | H143: ='Set Up'!#REF! -> 
D144: Select approach | F144: Select intervention type | H144: Select outcome
D145: Universal | E145: 1 | F145: ='Set Up'!BD116 -> 0 | G145: 1 | H145: ='Set Up'!#REF! -> 
D146: Whole school | E146: 2 | F146: ='Set Up'!BD117 -> 0 | G146: 2 | H146: ='Set Up'!#REF! -> 
D147: Targeted | E147: 3 | F147: ='Set Up'!BD118 -> 0 | G147: 3 | H147: ='Set Up'!#REF! -> 
D148: Transitions | E148: 4 | F148: ='Set Up'!BD119 -> 0 | G148: 4 | H148: ='Set Up'!#REF! -> 
E149: 5 | F149: ='Set Up'!BD120 -> 0 | G149: 5 | H149: ='Set Up'!#REF! -> 
E150: 6 | F150: ='Set Up'!BD121 -> 0 | G150: 6 | H150: ='Set Up'!#REF! -> 
E151: 7 | F151: ='Set Up'!BD122 -> 0 | G151: 7 | H151: ='Set Up'!#REF! -> 
E152: 8 | F152: ='Set Up'!BD123 -> 0 | G152: 8 | H152: ='Set Up'!#REF! -> 
E153: 9 | F153: ='Set Up'!BD124 -> 0 | G153: 9 | H153: ='Set Up'!#REF! -> 
E154: 10 | F154: ='Set Up'!BD125 -> 0 | G154: 10 | H154: ='Set Up'!#REF! -> 
G155: 11 | H155: ='Set Up'!#REF! -> 
G156: 12 | H156: ='Set Up'!#REF! -> 
G157: 13 | H157: ='Set Up'!#REF! -> 
G158: 14 | H158: ='Set Up'!#REF! -> 
G159: 15 | H159: ='Set Up'!#REF! -> 
G160: 16 | H160: ='Set Up'!#REF! -> 
G161: 17 | H161: ='Set Up'!#REF! -> 
G162: 18 | H162: ='Set Up'!#REF! -> 
G163: 19 | H163: ='Set Up'!#REF! -> 
G164: 20 | H164: ='Set Up'!#REF! -> 
G165: 21 | H165: ='Set Up'!#REF! -> 
G166: 22 | H166: ='Set Up'!#REF! -> 
G167: 23 | H167: ='Set Up'!#REF! -> 
G168: 24 | H168: ='Set Up'!#REF! -> 
G169: 25 | H169: ='Set Up'!#REF! -> 
G170: 26 | H170: ='Set Up'!#REF! -> 
F171: ='Set Up'!#REF! ->  | G171: 27 | H171: ='Set Up'!#REF! -> 
F172: ='Set Up'!#REF! ->  | G172: 28 | H172: ='Set Up'!#REF! -> 
D189: Universal | F189: Outcomes (RR)
D190: Intervention type | E190: Description | F190: ='Set Up'!D196 -> 0 | G190: Depression | H190: =H220 -> Low self-esteem | I190: Empathy | J190: Psychological problems | K190: Emotional wellbeing | L190: Wellbeing | M190: Social and emotional difficulties | N190: Cooperation | O190: Social adjustment | P190: Behavioural difficulties | Q190: Behavioural outcomes (difficulties) | R190: Behavioural outcomes (prosocial) | S190: Perpetration | T190: Victimisation | U190: Perpetration (primary) | V190: Perpetration (secondary) | W190: Victimisation (primary) | X190: Victimisation (secondary) | Y190: Cyberbullying perpetration | Z190: Cyberbullying victimisation | AA190: Exclusion | AB190: Truancy | AC190: School attendance | AD190: School climate | AE190: Response | AF190: Prosocial behaviour difficulties | AG190: Emotional distress - primary education | AH190: Emotional distress - secondary education | AI190: Behavioural difficulties - primary education | AJ190: Behavioural difficulties - secondary education
D191: ='Set Up'!H144 -> 0 | F191: 1 | G191: No available evidence | H191: No available evidence | I191: No available evidence | J191: No available evidence | K191: No available evidence | L191: No available evidence | M191: No available evidence | N191: No available evidence | O191: No available evidence | P191: 0.87 | Q191: No available evidence | R191: No available evidence | S191: No available evidence | T191: No available evidence | U191: No available evidence | V191: No available evidence | W191: No available evidence | X191: No available evidence | Y191: No available evidence | Z191: No available evidence | AA191: No available evidence | AB191: No available evidence | AC191: No available evidence | AD191: No available evidence | AE191: No available evidence | AF191: No available evidence | AG191: No available evidence | AH191: No available evidence | AI191: No available evidence | AJ191: No available evidence
D192: ='Set Up'!H145 -> 0 | F192: 1.13 | I192: No available evidence | J192: No available evidence | K192: No available evidence | L192: No available evidence | N192: No available evidence | O192: No available evidence | P192: No available evidence | Q192: No available evidence | R192: No available evidence | U192: No available evidence | V192: No available evidence | W192: No available evidence | X192: No available evidence | Y192: No available evidence | Z192: No available evidence | AA192: No available evidence | AB192: No available evidence | AC192: No available evidence | AD192: No available evidence | AE192: No available evidence
D193: ='Set Up'!H146 -> 0 | F193: 1.01 | I193: No available evidence | J193: No available evidence | K193: No available evidence | L193: No available evidence | M193: 1 | N193: No available evidence | O193: No available evidence | Q193: No available evidence | R193: No available evidence | U193: No available evidence | V193: No available evidence | W193: No available evidence | X193: No available evidence | Y193: No available evidence | Z193: No available evidence | AA193: No available evidence | AB193: No available evidence | AC193: No available evidence | AD193: No available evidence | AE193: No available evidence
D194: ='Set Up'!H147 -> 0 | F194: No available evidence | I194: No available evidence | J194: No available evidence | K194: No available evidence | L194: No available evidence | M194: No available evidence | N194: No available evidence | O194: No available evidence | P194: 1 | Q194: No available evidence | R194: No available evidence | U194: No available evidence | V194: No available evidence | W194: No available evidence | X194: No available evidence | Y194: No available evidence | Z194: No available evidence | AA194: No available evidence | AB194: No available evidence | AC194: No available evidence | AD194: No available evidence | AE194: No available evidence
D195: ='Set Up'!H148 -> 0 | F195: No available evidence | I195: No available evidence | J195: No available evidence | K195: No available evidence | L195: No available evidence | N195: No available evidence | O195: No available evidence | P195: 1.04 | Q195: No available evidence | R195: No available evidence | U195: No available evidence | V195: No available evidence | W195: No available evidence | X195: No available evidence | Y195: No available evidence | Z195: No available evidence | AA195: No available evidence | AB195: No available evidence | AC195: No available evidence | AD195: No available evidence | AE195: No available evidence
D196: ='Set Up'!H149 -> 0 | F196: 0.89 | I196: No available evidence | J196: No available evidence | K196: No available evidence | L196: No available evidence | M196: 0.94 | N196: No available evidence | O196: No available evidence | P196: 1.09 | Q196: No available evidence | R196: No available evidence | U196: No available evidence | V196: No available evidence | W196: No available evidence | X196: No available evidence | Y196: No available evidence | Z196: No available evidence | AA196: No available evidence | AB196: No available evidence | AC196: No available evidence | AD196: No available evidence | AE196: No available evidence
D197: ='Set Up'!H150 -> 0 | F197: 1.01 | I197: No available evidence | J197: No available evidence | K197: No available evidence | L197: No available evidence | M197: No available evidence | N197: No available evidence | O197: No available evidence | P197: No available evidence | Q197: No available evidence | R197: No available evidence | U197: No available evidence | V197: No available evidence | W197: No available evidence | X197: No available evidence | Y197: No available evidence | Z197: No available evidence | AC197: No available evidence | AD197: No available evidence | AE197: No available evidence
D198: ='Set Up'!H151 -> 0 | F198: 1.24 | I198: No available evidence | J198: No available evidence | K198: No available evidence | L198: No available evidence | N198: No available evidence | O198: No available evidence | Q198: No available evidence | R198: No available evidence | U198: No available evidence | V198: No available evidence | W198: No available evidence | X198: No available evidence | Y198: No available evidence | Z198: No available evidence | AA198: No available evidence | AB198: No available evidence | AC198: No available evidence | AD198: No available evidence | AE198: No available evidence
D199: ='Set Up'!H152 -> 0 | F199: 0.94 | I199: No available evidence | J199: No available evidence | K199: No available evidence | L199: No available evidence | N199: No available evidence | O199: No available evidence | Q199: No available evidence | R199: No available evidence | U199: No available evidence | V199: No available evidence | W199: No available evidence | X199: No available evidence | Y199: No available evidence | Z199: No available evidence | AA199: No available evidence | AB199: No available evidence | AC199: No available evidence | AD199: No available evidence | AE199: No available evidence
D200: ='Set Up'!H153 -> 0 | F200: 1.06 | P200: 1.02
D201: ='Set Up'!H154 -> 0 | F201: 1.09 | P201: No available evidence
D202: ='Set Up'!H155 -> 0 | F202: 1.07
D203: ='Set Up'!H156 -> 0 | F203: 2.05 | N203: No available evidence | O203: No available evidence | Q203: No available evidence | R203: No available evidence
D204: ='Set Up'!H157 -> 0 | F204: 1.19 | P204: 1.16
D205: ='Set Up'!H158 -> 0 | F205: 0.96 | N205: No available evidence | O205: No available evidence | P205: No available evidence | Q205: No available evidence | R205: No available evidence
D206: ='Set Up'!H159 -> 0 | F206: 1.08 | N206: No available evidence | O206: No available evidence | Q206: No available evidence | R206: No available evidence
D207: ='Set Up'!H160 -> 0 | F207: 1.38 | M207: 1.08
D208: ='Set Up'!H161 -> 0 | F208: 1.33 | I208: No available evidence | J208: No available evidence | K208: No available evidence | L208: No available evidence | M208: No available evidence | P208: 1.2
D209: ='Set Up'!H162 -> 0 | F209: 0.98 | N209: No available evidence | O209: No available evidence | P209: No available evidence | Q209: No available evidence | R209: No available evidence
D210: ='Set Up'!H163 -> 0 | F210: 1.19
D211: ='Set Up'!H164 -> 0 | F211: 1.05
D212: ='Set Up'!H165 -> 0 | F212: No available evidence | M212: 1.44
D213: ='Set Up'!H166 -> 0 | M213: 0.95
D214: ='Set Up'!H167 -> 0 | I214: No available evidence | J214: No available evidence | K214: No available evidence | L214: No available evidence | M214: No available evidence | P214: 0.97
D215: ='Set Up'!H168 -> 0 | M215: 1.06 | P215: No available evidence | Q215: No available evidence | R215: No available evidence
D219: Whole-school | F219: Outcomes (RR)
D220: Intervention type | E220: Description | F220: Emotional distress | G220: Depression | H220: =H230 -> Low self-esteem | I220: Empathy | J220: Psychological problems | K220: Emotional wellbeing | L220: Wellbeing | M220: =M190 -> Social and emotional difficulties | N220: Cooperation | O220: Social adjustment | P220: ='Set Up'!D195 -> 0 | Q220: Behavioural outcomes (difficulties) | R220: Behavioural outcomes (prosocial) | S220: Perpetration | T220: Victimisation | U220: Perpetration (primary) | V220: Perpetration (secondary) | W220: Victimisation (primary) | X220: Victimisation (secondary) | Y220: Cyberbullying perpetration | Z220: Cyberbullying victimisation | AA220: Exclusion | AB220: Truancy | AC220: School attendance | AD220: School climate | AE220: Response | AF220: =AF190 -> Prosocial behaviour difficulties | AG220: Emotional distress - primary education | AH220: Emotional distress - secondary education | AI220: Behavioural outcomes - primary education | AJ220: Behavioural outcomes - secondary education | AK220: ='Set Up'!U176 -> 0
D221: ='Set Up'!H169 -> 0 | E221: Offer a whole-school approach to support positive social, emotional, and mental wellbeing in primary and secondary education. | F221: No available evidence | G221: No available evidence | H221: No available evidence | I221: No available evidence | J221: No available evidence | K221: No available evidence | L221: No available evidence | M221: 1.17 | N221: No available evidence | O221: No available evidence | P221: 0.91 | Q221: No available evidence | R221: No available evidence | S221: No available evidence | T221: No available evidence | U221: No available evidence | V221: No available evidence | W221: No available evidence | X221: No available evidence | Y221: No available evidence | Z221: No available evidence | AA221: No available evidence | AB221: No available evidence | AC221: No available evidence | AD221: No available evidence | AE221: No available evidence | AF221: No available evidence | AG221: No available evidence | AH221: No available evidence | AI221: No available evidence | AJ221: No available evidence | AK221: No available evidence
D222: ='Set Up'!H170 -> 0 | I222: No available evidence | J222: No available evidence | K222: No available evidence | L222: No available evidence | M222: No available evidence | N222: No available evidence | O222: No available evidence | P222: 1 | Q222: No available evidence | R222: No available evidence
D229: Targeted | F229: Outcomes (RR)
D230: Intervention type | E230: Description | F230: Emotional distress | G230: Depression | H230: =H247 -> Low self-esteem | I230: Empathy | J230: Psychological problems | K230: Emotional wellbeing | L230: Wellbeing | M230: =M190 -> Social and emotional difficulties | N230: Cooperation | O230: Social adjustment | P230: ='Set Up'!D195 -> 0 | Q230: Behavioural outcomes (difficulties) | R230: Behavioural outcomes (prosocial) | S230: Perpetration | T230: Victimisation | U230: Perpetration (primary) | V230: Perpetration (secondary) | W230: Victimisation (primary) | X230: Victimisation (secondary) | Y230: Cyberbullying perpetration | Z230: Cyberbullying victimisation | AA230: Exclusion | AB230: Truancy | AC230: School attendance | AD230: School climate | AE230: Response | AF230: =AF220 -> Prosocial behaviour difficulties | AG230: Emotional distress - primary education | AH230: Emotional distress - secondary education | AI230: Behavioural outcomes - primary education | AJ230: Behavioural outcomes - secondary education
D231: MH group (specialist) | E231: Offer individual or group support to children and young people who have been identified as needing additional social and emotional support and/or mental health support | F231: 1.16 | G231: No available evidence | H231: No available evidence | I231: No available evidence | J231: No available evidence | K231: No available evidence | L231: No available evidence | M231: No available evidence | N231: No available evidence | O231: No available evidence | P231: 1.08 | Q231: No available evidence | R231: No available evidence | S231: No available evidence | T231: No available evidence | U231: No available evidence | V231: No available evidence | W231: No available evidence | X231: No available evidence | Y231: No available evidence | Z231: No available evidence | AA231: No available evidence | AB231: No available evidence | AC231: No available evidence | AD231: No available evidence | AE231: No available evidence | AF231: No available evidence | AG231: No available evidence | AH231: No available evidence | AI231: No available evidence | AJ231: No available evidence
D232: MH individual (specialist) | F232: 1.61 | G232: No available evidence | H232: 1.43 | I232: No available evidence | J232: No available evidence | K232: No available evidence | L232: No available evidence | N232: No available evidence | O232: No available evidence | P232: 1.66 | Q232: No available evidence | R232: No available evidence | U232: No available evidence | V232: No available evidence | W232: No available evidence | X232: No available evidence | Y232: No available evidence | Z232: No available evidence | AA232: No available evidence | AB232: No available evidence | AC232: No available evidence | AD232: No available evidence | AE232: No available evidence | AF232: 1.18
D233: MH group (school staff) | F233: 0.97 | G233: No available evidence | H233: No available evidence | I233: No available evidence | J233: No available evidence | K233: No available evidence | L233: No available evidence | N233: No available evidence | O233: No available evidence | P233: No available evidence | Q233: No available evidence | R233: No available evidence | U233: No available evidence | V233: No available evidence | W233: No available evidence | X233: No available evidence | Y233: No available evidence | Z233: No available evidence | AA233: No available evidence | AB233: No available evidence | AC233: No available evidence | AD233: No available evidence | AE233: No available evidence | AF233: No available evidence | AG233: 1.01 | AH233: 0.88
D234: Computer-based interventions | F234: 2.5 | G234: No available evidence | I234: No available evidence | J234: No available evidence | K234: No available evidence | L234: No available evidence | N234: No available evidence | O234: No available evidence | Q234: No available evidence | R234: No available evidence | U234: No available evidence | V234: No available evidence | W234: No available evidence | X234: No available evidence | Y234: No available evidence | Z234: No available evidence | AA234: No available evidence | AB234: No available evidence | AC234: No available evidence | AD234: No available evidence | AE234: No available evidence | AG234: No available evidence | AH234: No available evidence
D235: ='Set Up'!G233 -> 0 | F235: No available evidence | G235: No available evidence | P235: 1.49 | U235: No available evidence | V235: No available evidence | W235: No available evidence | X235: No available evidence | Y235: No available evidence | Z235: No available evidence | AA235: No available evidence | AB235: No available evidence | AC235: No available evidence | AD235: No available evidence | AE235: No available evidence
D236: ='Set Up'!G234 -> 0 | P236: 1.11 | U236: No available evidence | V236: No available evidence | W236: No available evidence | X236: No available evidence | Y236: No available evidence | Z236: No available evidence | AA236: No available evidence | AB236: No available evidence | AC236: No available evidence | AD236: No available evidence | AE236: No available evidence | AI236: 1.08 | AJ236: 1.5
D237: ='Set Up'!G237 -> 0 | P237: 1.86 | U237: No available evidence | V237: No available evidence | W237: No available evidence | X237: No available evidence | Y237: No available evidence | Z237: No available evidence | AA237: No available evidence | AB237: No available evidence | AC237: No available evidence | AD237: No available evidence | AE237: No available evidence | AI237: No available evidence | AJ237: No available evidence
D238: ='Set Up'!G238 -> 0 | P238: 3.77 | U238: No available evidence | V238: No available evidence | W238: No available evidence | X238: No available evidence | Y238: No available evidence | Z238: No available evidence | AA238: No available evidence | AB238: No available evidence | AC238: No available evidence | AD238: No available evidence | AE238: No available evidence
D246: Transitions | F246: Outcomes (RR)
D247: Intervention type | E247: Description | F247: Emotional distress | G247: Depression | H247: Low self-esteem | I247: Empathy | J247: Psychological problems | K247: Emotional wellbeing | L247: Wellbeing | M247: =M230 -> Social and emotional difficulties | N247: Cooperation | O247: Social adjustment | P247: ='Set Up'!D195 -> 0 | Q247: Behavioural outcomes (difficulties) | R247: Behavioural outcomes (prosocial) | S247: Perpetration | T247: Victimisation | U247: Perpetration (primary) | V247: Perpetration (secondary) | W247: Victimisation (primary) | X247: Victimisation (secondary) | Y247: Cyberbullying perpetration | Z247: Cyberbullying victimisation | AA247: Exclusion | AB247: Truancy | AC247: School attendance | AD247: School climate | AE247: Response | AF247: =AF230 -> Prosocial behaviour difficulties | AG247: Emotional distress - primary education | AH247: Emotional distress - secondary education | AI247: Behavioural outcomes - primary education | AJ247: Behavioural outcomes - secondary education | AK247: =AK220 -> 0
D248: Transition between schools | E248: Take account of the concerns of children undergoing transition | F248: 1.02 | G248: No available evidence | H248: No available evidence | I248: No available evidence | J248: No available evidence | K248: No available evidence | L248: No available evidence | M248: No available evidence | N248: No available evidence | O248: No available evidence | P248: 1.28 | Q248: No available evidence | R248: No available evidence | S248: No available evidence | T248: No available evidence | U248: No available evidence | V248: No available evidence | W248: No available evidence | X248: No available evidence | Y248: No available evidence | Z248: No available evidence | AA248: No available evidence | AB248: No available evidence | AC248: No available evidence | AD248: No available evidence | AE248: No available evidence | AF248: No available evidence | AG248: No available evidence | AH248: No available evidence | AI248: No available evidence | AJ248: No available evidence | AK248: 0.98
E249: Intervention type | G249: Intervention type | I249: Intervention type | K249: Intervention type
D250: 1 | E250: MH group (specialist) | F250: 4 | G250: Promote SEW skills | I250: MH group (specialist) | J250: 9 | K250: Transition between schools
D251: 2 | E251: MD inidividual (specialist) | F251: 5 | G251: Bullying (without parent involvement) | H251: 1 | I251: MD inidividual (specialist) | J251: 10 | K251: [User defined]
D252: 3 | E252: MH group (school staff) | F252: 6 | G252: Bullying (with parent involvement) | H252: 2 | I252: MH group (school staff)
D253: 4 | E253: Promote SEW skills | F253: 7 | G253: Bullying | H253: 10 | I253: [User defined]
D254: 5 | E254: Bullying (without parent involvement) | F254: 8 | G254: Bullying (curriculum + targeted)
D255: 6 | E255: Bullying (with parent involvement) | F255: 10 | G255: [User defined]
D256: 7 | E256: Bullying
D257: 8 | E257: Bullying (curriculum + targeted)
D258: 9 | E258: Transition between schools
D259: 10 | E259: [User defined]
D265: ID
D266: 1
D267: 2
D268: 3
D269: 4
D270: 5
D271: 6
D272: 7
D273: 8
D274: 9
D275: 10
AH280: SUMMARY
AH281: ● Reduce emotional distress by 0.33 ● Increase depression diagnosis by 0.51 ● Decrease social adjustment by 0.34 ●Decrease behavioural outcomes by 0.1 ● Increase response by 1.76 ● Quality of life 0.82
AH282: ● Reduce emotional distress by 0.71 ● Increase self-esteem by 0.57 ● Decrease behavioural outcomes (difficulties) by 0.6 ● Increase behavioural outcomes (prosocial) by 0.39
AH283: ● Reduce emotional distress by 0.01 ● Increase depression diagnosis by 0.19 ● Decrease behavioural outcomes by 0.16
AH284: ● Decrease empathy by 0.02 ● Decrease cooperation by 0.01 ● No effect on behavioural outcomes (difficulties) ● Increase behavioural outcomes (prosocial) by 0.25
G285: Outcomes | AH285: ● Increase bullying perpetration by 0.02 ● Decrease bullying victimisation by 0.12 ● Decrease cyberbullying perpetration by 0.06 ● Decrease cyberbullying victimisation by 0.06 ● Increase school climate by 0.36
E286: Intervention type | F286: Description | G286: emotional distress | H286: depression diagnosis | I286: self-esteem | J286: empathy | K286: psychological problems | L286: emotional wellbeing | M286: wellbeing | N286: social and emotional skills | O286: cooperation | P286: social adjustment | Q286: behavioural outcomes | R286: behavioural outcomes (difficulties) | S286: behavioural outcomes (prosocial) | T286: perpetration | U286: victimisation | V286: perpetration (primary) | W286: perpetration (secondary) | X286: victimisation (primary) | Y286: victimisation (secondary) | Z286: cyberbullying perpetration | AA286: cyberbullying victimisation | AB286: exclusion | AC286: truancy | AD286: school attendance | AE286: school climate | AF286: response | AG286: quality of life | AH286: ● Decrease bullying perpetration by 0.28 ● Decrease bullying victimisation by 0.22 ● Decrease cyberbullying perpetration by 0.07 ● Decrease cyberbullying victimisation by 0.06 ● Increase school climate by 0.19
E287: MH group (specialist) | F287: Offer individual or group support to children and young people who have been identified as needing additional social and emotional support and/or mental health support | G287: Reduce emotional distress by 0.33 | H287: Increase depression diagnosis by 0.51 | P287: Decrease social adjustment by 0.34 | Q287: Decrease behavioural outcomes by 0.1 | AF287: Increase response by 1.76 | AG287: Quality of life 0.82 | AH287: ● Increase psychological problems by 0.04 ● Increase emotional wellbeing by 0.03 ● Increase exclusion by 0.97 ● Increase truancy by 1.11 ● Quality of life reduction of 0.17
E288: MD inidividual (specialist) | G288: Reduce emotional distress by 0.71 | I288: Increase self-esteem by 0.57 | R288: Decrease behavioural outcomes (difficulties) by 0.6 | S288: Increase behavioural outcomes (prosocial) by 0.39 | AH288: ● Increase wellbeing by 0.15 ● Decrease bullying perpetration (primary) by 0.13 ● Decrease bullying perpetration (secondary) by 0.1 ● Decrease bullying victimisation (primary) by 0.18 ● Decrease bullying victimisation (secondary) by 0.08
E289: MH group (school staff) | G289: Reduce emotional distress by 0.01 | H289: Increase depression diagnosis by 0.19 | Q289: Decrease behavioural outcomes by 0.16 | AH289: ● Reduce emotional distress by 0.19 ● Increase social and emotional skills by 0.26 ● Increase behavioural outcomes by 0.49 ● No effect on bullying perpetration ● No effect on bullying victimisation ● Increase behavioural outcomes (prosocial) by 0.77 ● Decrease school attendance by 0.14
E290: Promote SEW skills | F290: Offer a whole-school approach to support positive social, emotional, and mental wellbeing in primary and secondary education. | J290: Decrease empathy by 0.02 | O290: Decrease cooperation by 0.01 | R290: Decrease behavioural outcomes (difficulties) by 0 | S290: Increase behavioural outcomes (prosocial) by 0.25 | AH290: =CONCATENATE(IF(G296="", "", CONCATENATE(G296, CHAR(10))), IF(H296="", "", CONCATENATE(H296, CHAR(10))), IF(I296="", "", CONCATENATE(I296, CHAR(10))), IF(J296="", "", CONCATENATE(J296, CHAR(10))), IF(K296="", "", CONCATENATE(K296, CHAR(10))), IF(L296="", "", CONCATENATE(L296, CHAR(10))), IF(M296="", "", CONCATENATE(M296, CHAR(10))), IF(N296="", "", CONCATENATE(N296, CHAR(10))), IF(O296="", "", CONCATENATE(O296, CHAR(10))), IF(P296="", "", CONCATENATE(P296, CHAR(10))), IF(Q296="", "", CONCATENATE(Q296, CHAR(10))), IF(R296="", "", CONCATENATE(R296, CHAR(10))), IF(S296="", "", CONCATENATE(S296, CHAR(10))), IF(T296="", "", CONCATENATE(T296, CHAR(10))), IF(U296="", "", CONCATENATE(U296, CHAR(10))), IF(V296="", "", CONCATENATE(V296, CHAR(10))), IF(W296="", "", CONCATENATE(W296, CHAR(10))), IF(X296="", "", CONCATENATE(X296, CHAR(10))), IF(Y296="", "", CONCATENATE(Y296, CHAR(10))), IF(Z296="", "", CONCATENATE(Z296, CHAR(10))), IF(AA296="", "", CONCATENATE(AA296, CHAR(10))), IF(AB296="", "", CONCATENATE(AB296, CHAR(10))), IF(AC296="", "", CONCATENATE(AC296, CHAR(10))), IF(AD296="", "", CONCATENATE(AD296, CHAR(10))), IF(AE296="", "", CONCATENATE(AE296, CHAR(10))), IF(AF296="", "", CONCATENATE(AF296, CHAR(10))), IF(AG296="", "", CONCATENATE(AG296, CHAR(10)))) -> 
E291: Bullying (without parent involvement) | T291: Increase bullying perpetration by 0.02 | U291: Decrease bullying victimisation by 0.12 | Z291: Decrease cyberbullying perpetration by 0.06 | AA291: Decrease cyberbullying victimisation by 0.06 | AE291: Increase school climate by 0.36
E292: Bullying (with parent involvement) | T292: Decrease bullying perpetration by 0.28 | U292: Decrease bullying victimisation by 0.22 | Z292: Decrease cyberbullying perpetration by 0.07 | AA292: Decrease cyberbullying victimisation by 0.06 | AE292: Increase school climate by 0.19
E293: Bullying | K293: Increase psychological problems by 0.04 | L293: Increase emotional wellbeing by 0.03 | AB293: Increase exclusion by 0.97 | AC293: Increase truancy by 1.11 | AG293: Quality of life reduction by 0.17
E294: Bullying (curriculum + targeted) | M294: Increase wellbeing by 0.15 | V294: Decrease bullying perpetration (primary) by 0.13 | W294: Decrease bullying perpetration (secondary) by 0.1 | X294: Decrease bullying victimisation (primary) by 0.18 | Y294: Decrease bullying victimisation (secondary) by 0.08
E295: Transition between schools | F295: Take account of the concerns of children undergoing transition | G295: Reduce emotional distress by 0.19 | N295: Increase social and emotional skills by 0.26 | Q295: Increase behavioural outcomes by 0.49 | S295: Increase behavioural outcomes (prosocial) by 0.77 | T295: No effect on bullying perpetration | U295: No effect on bullying victimisation | AD295: Decrease school attendance by 0.14 | AI295: utility
E296: User defined | G296: =IF(#REF!="","",CONCATENATE(IF(#REF!>0, "● Improve ", "● Reduce "),G$286, " by ", ABS(#REF!))) ->  | H296: =IF(#REF!="","",CONCATENATE(IF(#REF!>0, "● Improve ", "● Reduce "),H$286, " by ", ABS(#REF!))) ->  | I296: =IF(#REF!="","",CONCATENATE(IF(#REF!>0, "● Improve ", "● Reduce "),I$286, " by ", ABS(#REF!))) ->  | J296: =IF(#REF!="","",CONCATENATE(IF(#REF!>0, "● Improve ", "● Reduce "),J$286, " by ", ABS(#REF!))) ->  | K296: =IF(#REF!="","",CONCATENATE(IF(#REF!>0, "● Improve ", "● Reduce "),K$286, " by ", ABS(#REF!))) ->  | L296: =IF(#REF!="","",CONCATENATE(IF(#REF!>0, "● Improve ", "● Reduce "),L$286, " by ", ABS(#REF!))) ->  | M296: =IF(#REF!="","",CONCATENATE(IF(#REF!>0, "● Improve ", "● Reduce "),M$286, " by ", ABS(#REF!))) ->  | N296: =IF(#REF!="","",CONCATENATE(IF(#REF!>0, "● Improve ", "● Reduce "),N$286, " by ", ABS(#REF!))) ->  | O296: =IF(#REF!="","",CONCATENATE(IF(#REF!>0, "● Improve ", "● Reduce "),O$286, " by ", ABS(#REF!))) ->  | P296: =IF(#REF!="","",CONCATENATE(IF(#REF!>0, "● Improve ", "● Reduce "),P$286, " by ", ABS(#REF!))) ->  | Q296: =IF(#REF!="","",CONCATENATE(IF(#REF!>0, "● Improve ", "● Reduce "),Q$286, " by ", ABS(#REF!))) ->  | R296: =IF(#REF!="","",CONCATENATE(IF(#REF!>0, "● Improve ", "● Reduce "),R$286, " by ", ABS(#REF!))) ->  | S296: =IF(#REF!="","",CONCATENATE(IF(#REF!>0, "● Improve ", "● Reduce "),S$286, " by ", ABS(#REF!))) ->  | T296: =IF(#REF!="","",CONCATENATE(IF(#REF!>0, "● Improve ", "● Reduce "),T$286, " by ", ABS(#REF!))) ->  | U296: =IF(#REF!="","",CONCATENATE(IF(#REF!>0, "● Improve ", "● Reduce "),U$286, " by ", ABS(#REF!))) ->  | V296: =IF(#REF!="","",CONCATENATE(IF(#REF!>0, "● Improve ", "● Reduce "),V$286, " by ", ABS(#REF!))) ->  | W296: =IF(#REF!="","",CONCATENATE(IF(#REF!>0, "● Improve ", "● Reduce "),W$286, " by ", ABS(#REF!))) ->  | X296: =IF(#REF!="","",CONCATENATE(IF(#REF!>0, "● Improve ", "● Reduce "),X$286, " by ", ABS(#REF!))) ->  | Y296: =IF(#REF!="","",CONCATENATE(IF(#REF!>0, "● Improve ", "● Reduce "),Y$286, " by ", ABS(#REF!))) ->  | Z296: =IF(#REF!="","",CONCATENATE(IF(#REF!>0, "● Improve ", "● Reduce "),Z$286, " by ", ABS(#REF!))) ->  | AA296: =IF(#REF!="","",CONCATENATE(IF(#REF!>0, "● Improve ", "● Reduce "),AA$286, " by ", ABS(#REF!))) ->  | AB296: =IF(#REF!="","",CONCATENATE(IF(#REF!>0, "● Improve ", "● Reduce "),AB$286, " by ", ABS(#REF!))) ->  | AC296: =IF(#REF!="","",CONCATENATE(IF(#REF!>0, "● Improve ", "● Reduce "),AC$286, " by ", ABS(#REF!))) ->  | AD296: =IF(#REF!="","",CONCATENATE(IF(#REF!>0, "● Improve ", "● Reduce "),AD$286, " by ", ABS(#REF!))) ->  | AE296: =IF(#REF!="","",CONCATENATE(IF(#REF!>0, "● Improve ", "● Reduce "),AE$286, " by ", ABS(#REF!))) ->  | AF296: =IF(#REF!="","",CONCATENATE(IF(#REF!>0, "● Improve ", "● Reduce "),AF$286, " by ", ABS(#REF!))) ->  | AG296: =IF(#REF!="","",CONCATENATE(IF(#REF!>0, "● Improve ", "● Reduce "),AG$286, " by ", ABS(#REF!))) ->  | AI296: =#REF! -> 
AI297: =#REF! -> 
AI298: =#REF! -> 
AI299: =#REF! -> 
AI300: =#REF! -> 
AI301: =#REF! -> 
AI302: =#REF! -> 
AI303: =#REF! -> 
... 2 more rows

Sheet Intervention Cost
C9: Total cost of intervention breakdown
C11: Staff breakdown | D11: Number of staff required | E11: Hours dedicated to intervention | F11: Hourly rate | G11: Travel costs | H11: Total
C12: [Health leaders] | H12: =((E12*F12)*D12)+G12 -> 0
C13: [Teachers] | H13: =((E13*F13)*D13)+G13 -> 0
C14: [Teaching assistants] | H14: 0
H15: 0
C17: Resources | D17: Number required | E17: Cost per resource | F17: Total
C18: [leader manual] | F18: =D18*E18 -> 0
C19: [booklets for students] | F19: =D19*E19 -> 0
F20: =D20*E20 -> 0
F21: 0
C24: Total (using table) | D24: =SUM(H12:H15,F18:F21) -> 0
C26: or
C28: Total (user defined) | D28: 0

Sheet RR tables
B10: Universal approach | E10: Outcomes (RR)
B11: Intervention type | C11: Description | D11: Setting | E11: Emotional distress | F11: CI | G11: Behavioural skills | H11: CI | I11: Social and emotional skills | J11: CI | K11: Self-esteem | L11: CI | M11: Prosocial behaviour skills | N11: CI | O11: Bullying perpetration | P11: CI | Q11: Emotional distress - primary education | R11: CI | S11: Emotional distress - secondary education | T11: CI | U11: Behavioural skills- primary education | V11: CI | W11: Behavioural skills - secondary education | X11: CI
B12: ='Model Inputs'!E15 -> FRIENDS_for_Life | C12: Offer ‘social and emotional skills-based’ lessons as part of the curriculum | E12: 1 | F12: [0.99, 1.01] | G12: 0.87 | H12: [0.76, 0.99] | I12: No available evidence | K12: No available evidence | M12: No available evidence | O12: No available evidence | Q12: No available evidence | S12: No available evidence | U12: No available evidence | W12: No available evidence
B13: ='Model Inputs'!E16 -> CBT | E13: 1.13 | F13: [0.92, 1.39] | G13: No available evidence | I13: No available evidence | K13: No available evidence | M13: No available evidence | O13: No available evidence | Q13: No available evidence | S13: No available evidence | U13: No available evidence | W13: No available evidence
B14: ='Model Inputs'!E17 -> FRIENDS | E14: 1.01 | F14: [0.92, 1.10] | G14: No available evidence | I14: 1 | J14: [0.95, 1.07] | K14: No available evidence | M14: No available evidence | O14: No available evidence | Q14: No available evidence | S14: No available evidence | U14: No available evidence | W14: No available evidence
B15: ='Model Inputs'!E18 -> Zippys_Friends | E15: No available evidence | G15: 1 | H15: [0.99,1.01] | I15: No available evidence | K15: No available evidence | M15: No available evidence | O15: No available evidence | Q15: No available evidence | S15: No available evidence | U15: No available evidence | W15: No available evidence
B16: ='Model Inputs'!E19 -> PATHS | E16: No available evidence | G16: 1.04 | H16: [0.92, 1.19] | I16: No available evidence | K16: No available evidence | M16: No available evidence | O16: No available evidence | Q16: No available evidence | S16: No available evidence | U16: No available evidence | W16: No available evidence
B17: ='Model Inputs'!E20 -> RAP | E17: 0.89 | F17: [0.84, 0.94] | G17: 1.09 | H17: [0.90,1.33] | I17: 0.94 | J17: [0.83, 1.07] | K17: No available evidence | M17: No available evidence | O17: No available evidence | Q17: No available evidence | S17: No available evidence | U17: No available evidence | W17: No available evidence
B18: ='Model Inputs'!E21 -> LARS_and_LISA | E18: 1.01 | F18: [0.92, 1.12] | G18: No available evidence | I18: No available evidence | K18: No available evidence | M18: No available evidence | O18: No available evidence | Q18: No available evidence | S18: No available evidence | U18: No available evidence | W18: No available evidence
B19: ='Model Inputs'!E22 -> SPARX_R | E19: 1.24 | F19: [0.72, 2.13] | G19: No available evidence | I19: No available evidence | K19: No available evidence | M19: No available evidence | O19: No available evidence | Q19: No available evidence | S19: No available evidence | U19: No available evidence | W19: No available evidence
B20: ='Model Inputs'!E23 -> Op_Volle_Kracht | E20: 0.94 | F20: [0.89, 1.00] | G20: No available evidence | I20: No available evidence | K20: No available evidence | M20: No available evidence | O20: No available evidence | Q20: No available evidence | S20: No available evidence | U20: No available evidence | W20: No available evidence
B21: ='Model Inputs'!E24 -> AOP | E21: 1.06 | F21: [0.91, 1.23] | G21: 1.02 | H21: [0.99, 1.05] | I21: No available evidence | K21: No available evidence | M21: No available evidence | O21: No available evidence | Q21: No available evidence | S21: No available evidence | U21: No available evidence | W21: No available evidence
B22: ='Model Inputs'!E25 -> Mindfulness | E22: 1.09 | F22: [1.00, 1.19] | G22: No available evidence | I22: No available evidence | K22: No available evidence | M22: No available evidence | O22: No available evidence | Q22: No available evidence | S22: No available evidence | U22: No available evidence | W22: No available evidence
B23: ='Model Inputs'!E26 -> HeadStrong | E23: 1.07 | F23: [0.86, 1.34] | G23: No available evidence | I23: No available evidence | K23: No available evidence | M23: No available evidence | O23: No available evidence | Q23: No available evidence | S23: No available evidence | U23: No available evidence | W23: No available evidence
B24: ='Model Inputs'!E27 -> MoodGYM | E24: 2.05 | F24: [1.32, 3.16] | G24: No available evidence | I24: No available evidence | K24: No available evidence | M24: No available evidence | O24: No available evidence | Q24: No available evidence | S24: No available evidence | U24: No available evidence | W24: No available evidence
B25: ='Model Inputs'!E28 -> Pozik Bizi | E25: 1.19 | F25: [0.73, 1.93] | G25: 1.16 | H25: [1.02, 1.32] | I25: No available evidence | K25: No available evidence | M25: No available evidence | O25: No available evidence | Q25: No available evidence | S25: No available evidence | U25: No available evidence | W25: No available evidence
B26: ='Model Inputs'!E29 -> E_Couch | E26: 0.96 | F26: [0.72, 1.28] | G26: No available evidence | I26: No available evidence | K26: No available evidence | M26: No available evidence | O26: No available evidence | Q26: No available evidence | S26: No available evidence | U26: No available evidence | W26: No available evidence
B27: ='Model Inputs'!E30 -> E_GAD | E27: 1.08 | F27: [0.84, 1.38] | G27: No available evidence | I27: No available evidence | K27: No available evidence | M27: No available evidence | O27: No available evidence | Q27: No available evidence | S27: No available evidence | U27: No available evidence | W27: No available evidence
B28: ='Model Inputs'!E31 -> MindOut | E28: 1.38 | F28: [0.99, 1.92] | G28: No available evidence | I28: 1.08 | J28: [0.84, 1.38] | K28: No available evidence | M28: No available evidence | O28: No available evidence | Q28: No available evidence | S28: No available evidence | U28: No available evidence | W28: No available evidence
B29: ='Model Inputs'!E32 -> Coping_Power_Unviversal | E29: 1.33 | F29: [1.23, 1.44] | G29: 1.2 | H29: [1.08, 1.33] | I29: No available evidence | K29: No available evidence | M29: No available evidence | O29: No available evidence | Q29: No available evidence | S29: No available evidence | U29: No available evidence | W29: No available evidence
B30: ='Model Inputs'!E33 -> Taking_Action_Program | E30: 0.98 | F30: [0.89, 1.08] | G30: No available evidence | I30: No available evidence | K30: No available evidence | M30: No available evidence | O30: No available evidence | Q30: No available evidence | S30: No available evidence | U30: No available evidence | W30: No available evidence
B31: ='Model Inputs'!E34 -> ThisWayUp | E31: 1.19 | F31: [0.89, 1.59] | G31: No available evidence | I31: No available evidence | K31: No available evidence | M31: No available evidence | O31: No available evidence | Q31: No available evidence | S31: No available evidence | U31: No available evidence | W31: No available evidence
B32: ='Model Inputs'!E35 -> ITPFSA | E32: 1.05 | F32: [0.98, 1.12] | G32: No available evidence | I32: No available evidence | K32: No available evidence | M32: No available evidence | O32: No available evidence | Q32: No available evidence | S32: No available evidence | U32: No available evidence | W32: No available evidence
B33: ='Model Inputs'!E36 -> StrongKids | E33: No available evidence | G33: No available evidence | I33: 1.44 | J33: [0.54, 3.86] | K33: No available evidence | M33: No available evidence | O33: No available evidence | Q33: No available evidence | S33: No available evidence | U33: No available evidence | W33: No available evidence
B34: ='Model Inputs'!E37 -> Yoga | E34: No available evidence | G34: No available evidence | I34: 0.95 | J34: [0.74, 1.22] | K34: No available evidence | M34: No available evidence | O34: No available evidence | Q34: No available evidence | S34: No available evidence | U34: No available evidence | W34: No available evidence
B35: ='Model Inputs'!E38 -> Working_Things_Out | E35: No available evidence | G35: 0.97 | H35: [0.88, 1.07] | I35: No available evidence | K35: No available evidence | M35: No available evidence | O35: No available evidence | Q35: No available evidence | S35: No available evidence | U35: No available evidence | W35: No available evidence
B36: ='Model Inputs'!E39 -> Uplifting_out_health_and_wellbeing | E36: No available evidence | G36: No available evidence | I36: 1.06 | J36: [0.81, 1.40] | K36: No available evidence | M36: No available evidence | O36: No available evidence | Q36: No available evidence | S36: No available evidence | U36: No available evidence | W36: No available evidence
B40: Whole-school approach | E40: Outcomes (RR)
B41: Intervention type | C41: Description | D41: Setting | E41: Emotional distress | F41: CI | G41: =G11 -> Behavioural skills | H41: CI | I41: =I11 -> Social and emotional skills | J41: CI | K41: =K11 -> Self-esteem | L41: CI | M41: =M11 -> Prosocial behaviour skills | N41: CI | O41: Bullying perpetration | P41: CI | Q41: Emotional distress - primary education | R41: CI | S41: Emotional distress - secondary education | T41: CI | U41: =U11 -> Behavioural skills- primary education | V41: CI | W41: =W11 -> Behavioural skills - secondary education | X41: CI
B42: ='Model Inputs'!F15 -> Antibullying_with_curriculum | C42: Offer a whole-school approach to support positive social, emotional, and mental wellbeing in primary and secondary education. | E42: No available evidence | G42: 0.91 | H42: [0.87, 0.95] | I42: 1.17 | J42: [0.86, 1.59] | K42: No available evidence | M42: No available evidence | O42: No available evidence | Q42: No available evidence | S42: No available evidence | U42: No available evidence | W42: No available evidence
B43: ='Model Inputs'!F16 -> Antibullying_without_curriculum | E43: No available evidence | G43: 1 | H43: [1.00,1.00] | I43: No available evidence | K43: No available evidence | M43: No available evidence | O43: No available evidence | Q43: No available evidence | S43: No available evidence | U43: No available evidence | W43: No available evidence
B47: Targeted approach | E47: Outcomes (RR)
B48: Intervention type | C48: Description | D48: Setting | E48: Emotional distress | F48: CI | G48: =G41 -> Behavioural skills | H48: CI | I48: =I41 -> Social and emotional skills | J48: CI | K48: =K41 -> Self-esteem | L48: CI | M48: =M41 -> Prosocial behaviour skills | N48: CI | O48: Bullying perpetration | P48: CI | Q48: Emotional distress - primary education | R48: CI | S48: Emotional distress - secondary education | T48: CI | U48: =U41 -> Behavioural skills- primary education | V48: CI | W48: =W41 -> Behavioural skills - secondary education | X48: CI
B49: ='Model Inputs'!G15 -> MH_group_specialist | C49: Offer individual or group support to children and young people who have been identified as needing additional social and emotional support and/or mental health support | E49: 1.16 | F49: [1.00, 1.36] | G49: 1.08 | H49: [0.93, 1,26] | I49: No available evidence | K49: No available evidence | M49: No available evidence | O49: No available evidence | Q49: No available evidence | S49: No available evidence | U49: No available evidence | W49: No available evidence
B50: ='Model Inputs'!G16 -> MH_individual_specialist | E50: 1.61 | F50: [1.18, 2.20] | G50: 1.66 | H50: [1.10, 2.50] | I50: No available evidence | K50: 1.43 | L50: [1.07, 1.91] | M50: 1.18 | N50: [1.01,1.37] | O50: No available evidence | Q50: No available evidence | S50: No available evidence | U50: No available evidence | W50: No available evidence
B51: ='Model Inputs'!G17 -> MH_group_school_staff | E51: 0.97 | F51: [0.78, 1.21] | G51: No available evidence | I51: No available evidence | K51: No available evidence | M51: No available evidence | O51: No available evidence | Q51: 1.01 | R51: [0.73, 1.41] | S51: 0.88 | T51: [0.61, 1.27] | U51: No available evidence | W51: No available evidence
B52: ='Model Inputs'!G18 -> Computer_based_interventions | E52: 2.5 | F52: [1.33, 4.70] | G52: No available evidence | I52: No available evidence | K52: No available evidence | M52: No available evidence | O52: No available evidence | Q52: No available evidence | S52: No available evidence | U52: No available evidence | W52: No available evidence
B53: ='Model Inputs'!G19 -> SE_group_school_staff | E53: No available evidence | G53: 1.49 | H53: [0.95, 2.36] | I53: No available evidence | K53: No available evidence | M53: No available evidence | O53: No available evidence | Q53: No available evidence | S53: No available evidence | U53: No available evidence | W53: No available evidence
B54: ='Model Inputs'!G20 -> SE_group_specialist | E54: No available evidence | G54: 1.11 | H54: [0.77, 1.59] | I54: No available evidence | K54: No available evidence | M54: No available evidence | O54: No available evidence | Q54: No available evidence | S54: No available evidence | U54: 1.08 | V54: [0.74, 1.58] | W54: 1.5 | X54: [0.41, 5.45]
B55: ='Model Inputs'!G21 -> SE_individual_school_staff | E55: No available evidence | G55: 1.86 | H55: [0.33, 10.49] | I55: No available evidence | K55: No available evidence | M55: No available evidence | O55: No available evidence | Q55: No available evidence | S55: No available evidence | U55: No available evidence | W55: No available evidence
B56: ='Model Inputs'!G22 -> SE_individual_specialist_not_specified | E56: No available evidence | G56: 3.77 | H56: [0.95, 14.96] | I56: No available evidence | K56: No available evidence | M56: No available evidence | O56: No available evidence | Q56: No available evidence | S56: No available evidence | U56: No available evidence | W56: No available evidence
B60: Transitions-based approach | E60: Outcomes (RR)
B61: Intervention type | C61: Description | D61: Setting | E61: Emotional distress | F61: CI | G61: =G48 -> Behavioural skills | H61: CI | I61: =I48 -> Social and emotional skills | J61: CI | K61: =K48 -> Self-esteem | L61: CI | M61: =M48 -> Prosocial behaviour skills | N61: CI | O61: =O48 -> Bullying perpetration | P61: CI | Q61: Emotional distress - primary education | R61: CI | S61: Emotional distress - secondary education | T61: CI | U61: =U48 -> Behavioural skills- primary education | V61: CI | W61: =W48 -> Behavioural skills - secondary education | X61: CI
B62: ='Model Inputs'!H15 -> Transition_between_schools | C62: Take account of the concerns of children undergoing transition | E62: 1.02 | F62: [0.96, 1.09] | G62: 1.28 | H62: [0.71, 2.31] | I62: No available evidence | K62: No available evidence | M62: No available evidence | O62: 0.98 | P62: [0.91, 1.05] | Q62: No available evidence | S62: No available evidence | U62: No available evidence | W62: No available evidence

Sheet Additional Monetary Impact
D13: Additional monetary values - Educational Setting | F13: Base case | G13: User defined | H13: Used in model
D14: [placeholder] | H14: =IF(G14="",F14,G14) -> 0
D15: [placeholder] | H15: =IF(G15="",F15,G15) -> 0
D16: [placeholder] | H16: =IF(G16="",F16,G16) -> 0
D17: Additional monetary values - Societal (Other Sectors) | F17: Base case | G17: User defined | H17: Used in model
D18: [placeholder] | H18: =IF(G18="",F18,G18) -> 0
D19: [placeholder] | H19: =IF(G19="",F19,G19) -> 0
D20: [placeholder] | H20: =IF(G20="",F20,G20) -> 0
D22: Total | H22: =SUM(H14:H16,H18:H20) -> 0

Sheet Utility
D12: Monetary equivalent per QALY | E12: 20000 | G12: Utility | I12: Base case | J12: User defined | K12: Used in model
D13: Discount value | E13: 0.035 | G13: =CONCATENATE("Utility equivalent of a student living without ",'Model Inputs'!M39,"") -> Utility equivalent of a student living without please select... | J13: 0 | K13: =IF(J13="",ABS(I13),ABS(J13)) -> 0
D14: Expected length of benefit (years)
D16: Utility effect over time
D17: Fixed
D18: Fixed reduction in annual effect | E18: 0.3 | G18: Model user can define effect % in each year manually or choose a fixed utility reduction over time. When a fixed reduction value is entered this will be used in the model
D19: Varying
D20: Year | E20: User defined | F20: Used in model
D21: 1 | E21: 1 | F21: =IF($E$18="",E21,1) -> 1
D22: 2 | E22: 1 | F22: =IF($E$18="",E22,IF($F$21*(1-$E$18*D21)<0, 0, $F$21*(1-$E$18*D21))) -> 0.7
D23: 3 | E23: 1 | F23: 0.4
D24: 4 | E24: 1 | F24: 0.1
D25: 5 | E25: 1 | F25: 0
D26: 6 | E26: 1 | F26: 0
D27: 7 | E27: 1 | F27: 0
D28: 8 | E28: 1 | F28: 0
D29: 9 | E29: 1 | F29: 0
D30: 10 | E30: 1 | F30: 0
BV36: cost per case averted
BT37: time | BV37: =Overall!E14 -> 0
BU38: 1 | BV38: 0
BU39: 2 | BV39: 0
BU40: 3 | BV40: 0
BU41: 4 | BV41: 0
BU42: 5 | BV42: 0
BU43: 6 | BV43: 0
BU44: 7 | BV44: 0
BU45: 8 | BV45: 0
BU46: 9 | BV46: 0
BU47: 10 | BV47: 0
BV50: =BV36 -> cost per case averted
BT51: utility | BV51: =BV37 -> 0
BU52: 0.025 | BV52: 0
BU53: 0.05 | BV53: 0
BU54: 0.075 | BV54: 0
BU55: 0.1 | BV55: 0
BU56: 0.125 | BV56: 0
BU57: 0.15 | BV57: 0
BU58: 0.175 | BV58: 0
BU59: 0.2 | BV59: 0
BU60: 0.225 | BV60: 0
BU61: 0.25 | BV61: 0
BU62: 0.275 | BV62: 0
BU63: 0.3 | BV63: 0
D91: Time horizon (years)
D92: 1
D93: 1
D94: 2
D95: 3
D96: 4
D97: 5
D98: 6
D99: 7
D100: 8
D101: 9
D102: 10

Sheet MENU1B5 (hidden)

Sheet MENU1B6 (hidden)

Sheet MENU1B7 (hidden)

Sheet MENU1B8 (hidden)

Sheet Utility reference
M10: =CONCATENATE("To determine the utility equivalent of a student living without ",'Model Inputs'!M39) -> To determine the utility equivalent of a student living without please select...
M12: Baseline utility score under 25 | N12: 0.94
M14: Condition | N14: Utility score | O14: From condition to baseline
M15: Full health | N15: 1
M17: Early stage cancer | N17: 0.8 | O17: =($N$12-N17) -> 0.14
M18: Attention-deficit hyperactivity disorder (childhood) | N18: 0.798 | O18: =($N$12-N18) -> 0.142
M19: Stress related and somatoform disorders (childhood) | N19: 0.701 | O19: =($N$12-N19) -> 0.239
M21: Youth anxiety disorder (childhood) | N21: 0.62 | O21: =($N$12-N21) -> 0.32
M22: Substance use disorders (childhood) | N22: 0.601 | O22: =($N$12-N22) -> 0.339
M23: Late stage cancer | N23: 0.6 | O23: =($N$12-N23) -> 0.34
M24: Eating disorders (childhood) | N24: 0.567 | O24: =($N$12-N24) -> 0.373
M26: Severe depression | N26: 0.4 | O26: =($N$12-N26) -> 0.54
M27: Very severe rheumatoid arthritis | N27: 0.3 | O27: =($N$12-N27) -> 0.64
M30: Dead | N30: 0 | O30: =($N$12-N30) -> 0.94

Sheet Overall
D12: Student outcomes:
D13: =IF('Model Inputs'!P15=1,CONCATENATE("Number of students seeing improvement regarding ", 'Model Inputs'!M39), CONCATENATE("Number of students with worsening ", 'Model Inputs'!M39)) ->  | E13: =ROUND('Model Inputs'!M33,0) -> 0
D14: =IF('Model Inputs'!P15=1, CONCATENATE("Cost per case of ", 'Model Inputs'!M39, " improvement"), CONCATENATE("Cost per case of ", 'Model Inputs'!M39, " worsen")) ->  | E14: =ABS((IF(E13=0,0,((E17+E18)/E13)))) -> 0
D16: Overall:
D17: Intervention cost | E17: ='Model Inputs'!M36 -> 0
D18: Additional monetary impact | E18: =-'Additional Monetary Impact'!H22 -> 0
D19: ="Monetary QALY value" -> Monetary QALY value | E19: ='Model Inputs'!P17 -> 
D20: =IF('Set Up'!D89=1, "Total Cost", "Net benefit") -> Total Cost | E20: =SUM(E17:E19) -> 
D22: Additional monetary values include:
D23: =IF('Additional Monetary Impact'!D14= "[placeholder]","",'Additional Monetary Impact'!D14) -> 
D24: =IF('Additional Monetary Impact'!D15= "[placeholder]","",'Additional Monetary Impact'!D15) -> 
D25: =IF(AND(D23="",D24=""), "No additional monetary values have been included", "") -> No additional monetary values have been included

Sheet Per student
D12: Student outcomes:
D13: =IF('Model Inputs'!P15=1,"Likelihood of a student benefiting from the intervention", "Likelihood of a student worse-off following the intervention") ->  | E13: ='Model Inputs'!M33/'Model Inputs'!M37 -> 0
D15: Per student:
D16: Intervention cost | E16: ='Model Inputs'!M36/'Model Inputs'!M37 -> 0
D17: Additional monetary impact | E17: =-'Additional Monetary Impact'!H22/'Model Inputs'!M37 -> 0
D18: ="Monetary QALY value of cases added" -> Monetary QALY value of cases added | E18: ='Model Inputs'!P17/'Model Inputs'!M37 -> 
D19: =IF('Set Up'!D89=1, "Total Cost", "Net benefit") -> Total Cost | E19: =SUM(E16:E18) -> 
D21: Additional monetary values include:
D22: =IF('Additional Monetary Impact'!D14= "[placeholder]","",'Additional Monetary Impact'!D14) -> 
D23: =IF('Additional Monetary Impact'!D15= "[placeholder]","",'Additional Monetary Impact'!D15) -> 
D24: =IF(AND(D22="",D23=""), "No additional monetary values have been included", "") -> No additional monetary values have been included

Sheet MENU2B3 (hidden)

Sheet MENU2B4 (hidden)

Sheet MENU2B5 (hidden)

Sheet MENU2B6 (hidden)

Sheet MENU2B7 (hidden)

Sheet MENU2B8 (hidden)

Sheet MENU3B1 (hidden)

Sheet MENU3B2 (hidden)

Sheet MENU3B3 (hidden)

Sheet MENU3B4 (hidden)

Sheet MENU3B5 (hidden)

Sheet MENU3B6 (hidden)

Sheet MENU3B7 (hidden)

Sheet MENU3B8 (hidden)

Sheet MENU4B1 (hidden)

Sheet MENU4B2 (hidden)

Sheet MENU4B3 (hidden)

Sheet MENU4B4 (hidden)

Sheet MENU4B5 (hidden)

Sheet MENU4B6 (hidden)

Sheet MENU4B7 (hidden)

Sheet MENU4B8 (hidden)

Sheet MENU5B1 (hidden)

Sheet MENU5B2 (hidden)

Sheet MENU5B3 (hidden)

Sheet MENU5B4 (hidden)

Sheet MENU5B5 (hidden)

Sheet MENU5B6 (hidden)

Sheet MENU5B7 (hidden)

Sheet MENU5B8 (hidden)

Sheet MENU6B1 (hidden)

Sheet MENU6B2 (hidden)

Sheet MENU6B3 (hidden)

Sheet MENU6B4 (hidden)

Sheet MENU6B5 (hidden)

Sheet MENU6B6 (hidden)

Sheet MENU6B7 (hidden)

Sheet MENU6B8 (hidden)

Sheet Sensitivity Analysis
D11: Perspective: | E11: =IF('Set Up'!D89=2, "Societal", "Educational") -> Educational
BR12: =IF(E13=BU14,1,IF(E13=BU15,2,IF(E13=BU16,3,IF(E13=BV17,4)))) -> FALSE
D13: Variable selected: | E13: Utility size given to bullying perpetration | BU13: Educational | BV13: Societal
BU14: Intervention cost | BV14: Intervention cost
BU15: Number of students | BV15: Number of students
BU16: Intervention effectiveness - RR | BV16: Intervention effectiveness - RR
BV17: =CONCATENATE("Utility size given to ", 'Model Inputs'!M39) -> Utility size given to please select...
BR18: =IF(AND(BR12=1,E11=BU13),1,IF(AND(BR12=2,E11=BU13),2,IF(AND(BR12=3,E11=BU13),3,IF(AND(BR12=1,E11=BV13),4,IF(AND(BR12=2,E11=BV13),5,IF(AND(BR12=3,E11=BV13),6,IF(AND(BR12=4,E11=BV13),7))))))) -> FALSE

Sheet Templates
A2: Graphs
K5: Cost breakdown
Y7: Tornado diagram
K34: CEAC
K35: Survival analysis
W36: CEAC multiple treatments
W37: Graph to show number of different events over time
W38: Economically justifiable price at different thresholds
W39: Survival analysis
D50: % in testing scenario
D51: 0 | E51: 0.1 | F51: 0.2 | G51: 0.3 | H51: 0.4 | I51: 0.5 | J51: 0.6 | K51: 0.7 | L51: 0.8 | M51: 0.9 | N51: 1
A52: % in universal scenario | C52: 0 | D52: 25359121.58 | E52: 10535138.96 | F52: -4288843.661 | G52: -19112826.28 | H52: -33936808.9 | I52: -48760791.52 | J52: -63584774.14 | K52: -78408756.77 | L52: -93232739.39 | M52: -108056722 | N52: -122880704.6
C53: 0.1 | D53: 40183104.2 | E53: 25359121.58 | F53: 10535138.96 | G53: -4288843.661 | H53: -19112826.28 | I53: -33936808.9 | J53: -48760791.52 | K53: -63584774.14 | L53: -78408756.77 | M53: -93232739.39 | N53: -108056722
C54: 0.2 | D54: 55007086.82 | E54: 40183104.2 | F54: 25359121.58 | G54: 10535138.96 | H54: -4288843.661 | I54: -19112826.28 | J54: -33936808.9 | K54: -48760791.52 | L54: -63584774.14 | M54: -78408756.77 | N54: -93232739.39
C55: 0.3 | D55: 69831069.44 | E55: 55007086.82 | F55: 40183104.2 | G55: 25359121.58 | H55: 10535138.96 | I55: -4288843.661 | J55: -19112826.28 | K55: -33936808.9 | L55: -48760791.52 | M55: -63584774.14 | N55: -78408756.77 | O55: Two-way sensitivity analysis
C56: 0.4 | D56: 84655052.06 | E56: 69831069.44 | F56: 55007086.82 | G56: 40183104.2 | H56: 25359121.58 | I56: 10535138.96 | J56: -4288843.661 | K56: -19112826.28 | L56: -33936808.9 | M56: -48760791.52 | N56: -63584774.14 | AB56: CE plane
C57: 0.5 | D57: 99479034.69 | E57: 84655052.06 | F57: 69831069.44 | G57: 55007086.82 | H57: 40183104.2 | I57: 25359121.58 | J57: 10535138.96 | K57: -4288843.661 | L57: -19112826.28 | M57: -33936808.9 | N57: -48760791.52
C58: 0.6 | D58: 114303017.3 | E58: 99479034.69 | F58: 84655052.06 | G58: 69831069.44 | H58: 55007086.82 | I58: 40183104.2 | J58: 25359121.58 | K58: 10535138.96 | L58: -4288843.661 | M58: -19112826.28 | N58: -33936808.9
C59: 0.7 | D59: 129126999.9 | E59: 114303017.3 | F59: 99479034.69 | G59: 84655052.06 | H59: 69831069.44 | I59: 55007086.82 | J59: 40183104.2 | K59: 25359121.58 | L59: 10535138.96 | M59: -4288843.661 | N59: -19112826.28
C60: 0.8 | D60: 143950982.5 | E60: 129126999.9 | F60: 114303017.3 | G60: 99479034.69 | H60: 84655052.06 | I60: 69831069.44 | J60: 55007086.82 | K60: 40183104.2 | L60: 25359121.58 | M60: 10535138.96 | N60: -4288843.661
C61: 0.9 | D61: 158774965.2 | E61: 143950982.5 | F61: 129126999.9 | G61: 114303017.3 | H61: 99479034.69 | I61: 84655052.06 | J61: 69831069.44 | K61: 55007086.82 | L61: 40183104.2 | M61: 25359121.58 | N61: 10535138.96
C62: 1 | D62: 173598947.8 | E62: 158774965.2 | F62: 143950982.5 | G62: 129126999.9 | H62: 114303017.3 | I62: 99479034.69 | J62: 84655052.06 | K62: 69831069.44 | L62: 55007086.82 | M62: 40183104.2 | N62: 25359121.58
A69: Buttons
A80: Tables
C82: Treatment | E82: Comparator
C83: Health state 1 | D83: Health state 2 | E83: Health state 1 | F83: Health state 2
B84: Item 1 | C84: 2000 | D84: 200 | E84: 1248 | F84: 761
B85: Item 2 | C85: 3000 | D85: 156 | E85: 1543 | F85: 456
B86: Item 3 | C86: 4000 | D86: 579 | E86: 9425 | F86: 125
B87: Total | C87: =SUM(C84:C86) -> 9000 | D87: =SUM(D84:D86) -> 935 | E87: =SUM(E84:E86) -> 12216 | F87: =SUM(F84:F86) -> 1342
C89: Health state 1
B90: Item 1 | C90: 2000
B91: Item 2 | C91: 3000
B92: Item 3 | C92: 4000 | D92: Standard error | E92: Alpha | F92: Beta | G92: Value used in model
B93: Total | C93: =SUM(C90:C92) -> 9000 | D93: =C93*0.1 -> 900 | E93: =IFERROR((C93^2)/(D93^2),"") -> 100 | F93: =IFERROR((D93^2)/C93,"") -> 90 | G93: 9000
U112: 19000
E113: 200 | H113: Treatment | I113: Comparator | L113: 20 | M113: 40 | N113: 60 | O113: 80 | P113: 100 | R113: Parameter | U113: Low value | V113: High value | X113: CEAC
E114: 300 | G114: Cost X | H114: 30 | I114: 80 | K114: 0.01 | L114: 250000 | M114: 220000 | N114: 600000 | O114: 700000 | P114: 900000 | R114: Parameter 1 (low 54; high 80) | U114: 50000 | V114: -10000 | Y114: 1
E115: 400 | G115: Cost X | H115: 10 | I115: 30 | K115: 0.1 | L115: 250000 | M115: 220000 | N115: 600000 | O115: 700000 | P115: 900000 | R115: Parameter 2 (low 0.5; high 1.5) | U115: 40000 | V115: -5000 | X115: 10000 | Y115: 0.6 | Z115: 0.4
E116: 500 | G116: Cost X | H116: 50 | I116: 10 | K116: 0.2 | L116: 250000 | M116: 220000 | N116: 600000 | O116: 700000 | P116: 900000 | R116: Parameter 3 (low 0.5; high 1.5) | U116: -2000 | V116: 30000 | X116: 20000 | Y116: 1 | Z116: 0
E117: 600 | G117: Cost X | H117: 60 | I117: 85 | K117: 0.3 | L117: 250000 | M117: 220000 | N117: 600000 | O117: 700000 | P117: 900000 | R117: Parameter 4 (low £0; high £200) | U117: 10 | V117: 20000 | X117: 30000 | Y117: 1 | Z117: 0
E118: 700 | G118: Cost X | H118: 10 | I118: 60 | K118: 0.4 | L118: 250000 | M118: 220000 | N118: 600000 | O118: 700000 | P118: 900000 | R118: Parameter 5 (low 0.5; high 0.9) | U118: 25000 | V118: 5000 | X118: 40000 | Y118: 1 | Z118: 0
E119: 800 | G119: Cost X | H119: 80 | I119: 30 | K119: 0.5 | L119: 250000 | M119: 220000 | N119: 600000 | O119: 700000 | P119: 900000 | R119: Parameter 6 (low 0.2; high 0.75) | U119: 7000 | V119: 21000 | X119: 50000 | Y119: 1 | Z119: 0
E120: 900 | G120: Cost X | H120: 70 | I120: 20 | K120: 0.6 | L120: 250000 | M120: 220000 | N120: 600000 | O120: 700000 | P120: 900000 | R120: Parameter 7 (low 0%; high 20%) | U120: 20000 | V120: 10000 | X120: 60000 | Y120: 1 | Z120: 0
E121: 1000 | G121: Cost X | H121: 20 | I121: 40 | K121: 0.7 | L121: 250000 | M121: 220000 | N121: 600000 | O121: 700000 | P121: 900000 | R121: Parameter 8 (low 0%; high 20%) | U121: 20000 | V121: 15000 | X121: 70000 | Y121: 1 | Z121: 0
E122: 1100 | K122: 0.8 | L122: 250000 | M122: 220000 | N122: 600000 | O122: 700000 | P122: 900000 | X122: 80000 | Y122: 1 | Z122: 0
E123: 500 | K123: 0.9 | L123: 250000 | M123: 220000 | N123: 600000 | O123: 700000 | P123: 900000 | R123: Threshold | S123: 0 | T123: 20000 | X123: 90000 | Y123: 1 | Z123: 0
K124: 1 | L124: 250000 | M124: 220000 | N124: 600000 | O124: 700000 | P124: 900000 | S124: 0 | T124: 0 | X124: 100000 | Y124: 1 | Z124: 0
S134: Incremental Cost | T134: Incremental QALYs | V134: Base Case | W134: -19993.50945 | X134: 2.115430706
S135: -22409.46935 | T135: 2.605755644 | W135: -39987.01891
S136: -37530.80768 | T136: 2.285873508 | V136: Threshold Line | W136: -80000 | X136: -4
S137: -32633.18668 | T137: 1.476626403 | W137: 0 | X137: 0
S138: -12391.9891 | T138: 2.171424228 | W138: 80000 | X138: 4
S139: 2959.962375 | T139: 1.922446335
S140: -21360.31943 | T140: 1.843201779
S141: 7979.898412 | T141: 2.664134862
S142: -11070.79649 | T142: 2.173748264
S143: 2779.684239 | T143: 2.786882257
S144: -20186.9697 | T144: 2.186402961
S145: -14356.99929 | T145: 2.01618075
S146: -9409.217503 | T146: 1.85381772
S147: -25943.10622 | T147: 2.34404156
S148: -1102.768912 | T148: 2.722944742
S149: -10840.16989 | T149: 2.065795294
S150: -10279.77228 | T150: 2.04856599
S151: -37.40429756 | T151: 2.48657049
S152: -24177.92044 | T152: 2.529197579
S153: 5895.301193 | T153: 2.079072227
S154: -40435.5703 | T154: 2.177159731
S155: -53214.47439 | T155: 1.473055242
S156: -38445.24812 | T156: 1.874904583
S157: -27546.4116 | T157: 2.258965588
S158: -31864.47976 | T158: 2.602989228
S159: -45607.2066 | T159: 2.419799583
S160: -37374.80892 | T160: 1.93684602
S161: -16091.76254 | T161: 2.055785752
S162: -46757.0605 | T162: 2.011188127
S163: -18527.99005 | T163: 1.39924322
S164: -8277.20116 | T164: 1.892548467
S165: -16158.03968 | T165: 2.204542
S166: -21015.36239 | T166: 2.043834135
S167: -63706.86502 | T167: 1.336153695
S168: 1118.20497 | T168: 1.714582354
S169: -3621.17635 | T169: 2.049467489
S170: 16112.48617 | T170: 1.918687532
S171: -9611.529497 | T171: 2.244180293
S172: -2214.358699 | T172: 1.97705378
S173: -9989.276079 | T173: 1.824060247
S174: -163.8487944 | T174: 2.107497689
S175: -12757.49898 | T175: 1.919094606
S176: -4557.670342 | T176: 1.459865343
S177: -11242.76819 | T177: 1.632758772
S178: -8237.898791 | T178: 2.004646254
S179: -18571.33235 | T179: 2.126209511
S180: -39324.93512 | T180: 2.74794673
S181: -7804.659473 | T181: 1.840395797
S182: -13810.10887 | T182: 1.800936236
S183: -55987.97931 | T183: 2.899897691
S184: -22520.32282 | T184: 1.713453105
S185: -17535.26797 | T185: 2.508367958
S186: 154.4464431 | T186: 2.242193002
S187: -2544.909875 | T187: 1.836180146
S188: -6461.186223 | T188: 1.581099853
S189: -57059.84694 | T189: 2.492105745
S190: -19262.84318 | T190: 2.023236603
S191: -9895.270682 | T191: 1.930011162
S192: -13889.31435 | T192: 2.179752912
S193: 3636.440388 | T193: 1.813015973
S194: -48036.11815 | T194: 2.06268338
S195: -11929.0651 | T195: 2.718860588
S196: -48623.21227 | T196: 2.634907786
S197: -63770.03012 | T197: 2.535007183
S198: 14173.56968 | T198: 1.802640906
S199: -25989.99036 | T199: 1.893626025
S200: -17625.31849 | T200: 1.667867628
S201: -32030.40234 | T201: 2.39823685
S202: -23579.06843 | T202: 1.94277138
S203: -12238.08379 | T203: 2.210918172
S204: -14073.17149 | T204: 1.685624071
S205: 2360.87798 | T205: 2.294697016
S206: -7121.651587 | T206: 2.422723715
S207: -16988.10709 | T207: 2.212123778
S208: -45305.47269 | T208: 1.817875366
S209: -29135.31171 | T209: 2.52176937
S210: -2880.949684 | T210: 1.814640838
S211: -49338.19584 | T211: 1.976922585
S212: -10340.87198 | T212: 1.924525841
S213: -3780.57087 | T213: 1.684404831
S214: -14927.16861 | T214: 2.532650701
S215: -7660.652979 | T215: 2.579906097
S216: -8194.078732 | T216: 1.662721689
S217: -76557.57103 | T217: 2.270321204
S218: -33571.49986 | T218: 2.371638977
S219: -16470.08523 | T219: 1.615426717
S220: 2822.411853 | T220: 2.181214163
S221: -5925.283789 | T221: 2.264584307
S222: -26438.02636 | T222: 1.778282235
S223: -28123.03766 | T223: 2.150417307
S224: -8677.145855 | T224: 1.784320543
S225: -17026.4337 | T225: 1.879360376
S226: -18233.64382 | T226: 2.042480329
S227: -10207.63041 | T227: 2.585621665
S228: -15933.16451 | T228: 2.243769184
S229: -9811.095205 | T229: 1.975979503
S230: -6522.391609 | T230: 2.298241985
S231: -23958.22613 | T231: 2.128726376
S232: -23936.02765 | T232: 2.477656603
S233: 2316.3116 | T233: 2.490614289
S234: -12787.82948 | T234: 1.59431816
S235: -9698.882126 | T235: 2.198399061
S236: -28814.52835 | T236: 1.528710533
S237: -28301.16561 | T237: 2.039341473
S238: -3770.79018 | T238: 1.644045606
S239: -27802.2809 | T239: 1.201728546
S240: -10463.78662 | T240: 1.853052215
S241: -20187.96692 | T241: 1.673899413
S242: -47273.48233 | T242: 2.135773409
S243: -409.0006509 | T243: 1.837593454
S244: -8963.466144 | T244: 2.276706481
S245: -19342.18967 | T245: 2.034070398
S246: -8156.360727 | T246: 2.073088336
S247: -13200.73609 | T247: 2.12435516
S248: -5899.085455 | T248: 2.197734783
S249: -39870.1709 | T249: 1.983150179
S250: -38575.19886 | T250: 2.318669564
S251: -44917.43011 | T251: 2.055868475
S252: -16894.58817 | T252: 2.262264637
S253: -34330.6932 | T253: 2.42611991
S254: -17986.07239 | T254: 2.082744131
S255: 1559.951226 | T255: 2.13528105
S256: -16562.40606 | T256: 2.168301403
S257: -28278.76319 | T257: 1.664453034
S258: -11361.26359 | T258: 2.106766595
S259: -26610.18313 | T259: 2.407761239
S260: -26638.71905 | T260: 1.666288362
S261: -14163.59598 | T261: 1.684876045
S262: -19609.01959 | T262: 2.125435847
S263: -751.6394472 | T263: 2.219538737
S264: -58984.18728 | T264: 2.5301241
S265: -5986.189298 | T265: 2.247306146
S266: -2764.296608 | T266: 1.215335208
S267: -15914.0321 | T267: 2.456907165
S268: -18503.0682 | T268: 1.958019138
S269: -3330.66857 | T269: 2.010474963
S270: -17696.6718 | T270: 2.117433616
S271: -73717.25138 | T271: 2.303737747
S272: -20118.95419 | T272: 3.114361178
S273: -29596.76046 | T273: 1.613155753
S274: -9743.27449 | T274: 2.548936756
S275: -39780.42969 | T275: 1.718815106
S276: -1095.769212 | T276: 2.098371275
S277: -9766.710601 | T277: 3.097659836
S278: -35566.04682 | T278: 1.689779225
S279: -22968.2547 | T279: 1.814606428
S280: -7080.882916 | T280: 1.72494821
S281: -11214.49552 | T281: 2.12113226
S282: -22187.40714 | T282: 2.116153624
S283: -40331.51285 | T283: 2.087395592
S284: -26000.24267 | T284: 2.122299477
S285: -64533.01742 | T285: 1.880289956
... 849 more rows

Sheet Changes log
B2: Name (initials) | C2: Date | D2: Action
B37: * For guidance on keeping a model changes, please see accompanying notes R:\Templates\New Templates\Model Template\Project log guidance.pptx

Sheet Sheet2

Sheet Sheet1
